{"text_format":"1","workbook":"xlsx","n_sheets":12,"sheets":["Intro og Læsevejledning","Tiltag","VEJ- OG STIPROJEKT","FORSYNING","STORT PROJEKT","BANEPROJEKT","ORGANISATORISKE VÆRKTØJER","DATA_VEJPROJEKT","DATA_FORSYNING","DATA_STORT PROJEKT","DATA_BANEPROJEKT","DATA_ORGANISATORISKE VÆRKTØJER"],"not_rendered":{"charts":0,"images":0,"macros":1,"external_links":0,"defined_names":1,"comments":0,"pivot_tables":0},"unopened":[],"bounds":{"document_bytes":16777216,"sheet_cells":100000,"rows_first":2000,"rows_last":500,"rows_between":2000,"halvings":0,"cell_chars":16384,"cell_head_chars":4096},"cells_cut":0,"cells_raw":0,"read":"whole","date_system":"1900"}

{"sheet":"Intro og Læsevejledning","index":0,"n_rows":4,"n_cols":2,"rows_kept":4,"cut":false,"hidden":false,"merged":[]}
[]
[null,"Introduktion og læsevejledning\nKan du ikke aktivere makroer?\nAf sikkerhedshensyn blokerer Microsoft Office for makroer i alle dokumenter, der er downloadet fra internettet og gemt i din ”download”-mappe. \nDu kan få lov til at aktivere makroer ved at gemme Excel-filen her i en anden mappe og åbne den igen fra den nye filplacering. Makroerne i dokumentet \nbruges til at tilpasse dokumentets celler for en bedre læseoplevelse og til at lave knappen nedenfor, der linker til CO-PI’s hjemmeside. "]
[null,"Introduktion\nGuide til mindre råstofforbrug i anlægsprojekter er et resultat af det tætte samarbejde mellem Center for Offentlig-Privat Innovation (CO-PI) og partnerne i skaleringsprocessen 'Sammen om mindre råstofforbrug'. Målet med guiden er at samle og tilgængeliggøre en omfattende vifte af viden og inspirerende tiltag, der kan medvirke til at reducere anvendelsen af jomfruelige råstoffer i anlægsprojekter. Med fokus på bæredygtighed og ressourceeffektivitet er denne guide udviklet, for at støtte aktører inden for anlægsbranchen i deres stræben efter at ændre på deres prakisser inden for dette området.\n\nDenne guide er hovedsageligt henvendt til projektledere, projekteringsteams og bæredygtighedskoordinatorer, og har til formål at give dem det nødvendige overblik over hvad der skal til, for at arbejde med udvalgte tiltag for reduktion af råstofforbrug i anlægsprojekter. Guiden er målrettet bygherrer, men kan anvendes af alle, som ønsker inspiration til reduktion af anvendelsen af jomfruelige råstoffer i anlægsarbejder. Det forestilles at guiden bl.a. kan bruges i situationer hvor:\n• Projektleder skal indarbejde og planlægge for bæredygtighed i projekt\n• Projektleder eller projektteams indgår i dialog med rådgiver\n• Bæredygtighedskoordinatoren skal lave aktiviteter (fx workshops eller dialogmøder) eller mødes med sin beslutningstager (fx ifm. bæredygtighedsstrategi)\n\nGuiden kan bruges i sin nuværende og originale form, men kan også tilrettes den enkelte organisations projektværktøjer og personliggøres, hvortil erfaringer kan indføres. Dette afspejles også i tomme felter, som ikke kan udfyldes af CO-PI.\n\nLæsevejledning\nGuiden til mindre råstofforbrug i anlægsprojekter er struktureret på en måde, der skal gøre det nemt for læseren at navigere i en entreprises forskellige faser og finde relevante tiltag til reduktion af råstofforbruget herfor. Gå til fanen 'Tiltag' og indtast oplysningerne guiden beder om. Guiden er opdelt i følgende projekttyper med dertilhørende faner:\n\nVej- og stiprojekter: Her præsenteres tiltag, der er relevante for vej- og stiprojekter. Guiden er opbygget kronologisk og følger processen for en hovedentreprise. Du vil finde skræddersyede idéer og løsninger, der kan implementeres på forskellige trin af projektet for at mindske råstofforbruget.\n\nForsyningsprojekter: I denne fane præsenteres tiltag, der er specifikke for forsyningsprojekter. Ligesom i den foregående fane, er guiden opbygget kronoligisk og følger en hovedentrepriseproces. Du vil opdage praktiske metoder til at reducere råstofforbruget i disse specifikke projekter. \n\nStore projekter: Denne fane er dedikeret til tiltag, der er målrettet mod de større projekter. Ligegyldigt om det er forsyningsprojekter eller totalentrepriser, vil du finde trin-for-trin-tiltag til at integrere bæredygtighed og råstofreduktion i de større projektsammenhænge.\n\nBaneprojekter: I denne fane fokuseres der på tiltag til råstofreduktion inden for bane projekter. Guiden følger også en totalentrepriseproces og giver indsigt i, hvordan man skridt for skridt kan integrere bæredygtige metoder og initiativer.\n\nOrganisatoriske værktøjer: Denne sidste fane fokuserer på tiltag, der kan implementeres på organisationsniveau for at fremme bæredygtige praksisser og med omtanke for råstofferne. Her finder du strategier, metoder og bedste praksisser, der kan integreres i virksomhedens kultur og arbejdsprocesser.\n\nDenne strukturerede tilgang i guiden skal give læseren mulighed for at finde relevante tiltag baseret på deres specifikke projektkontekst og faglige interesseområder. Uanset om du er involveret i små eller store anlægsprojekter, vil guiden kunne hjælpe dig i retning af mere bæredygtige og ressourceeffektive praksisser inden for anlægsbranchen."]
[null,"Baneprojekter: I denne fane fokuseres der på tiltag til råstofreduktion inden for bane projekter. Guiden følger også en totalentrepriseproces og giver indsigt i, hvordan man skridt for skridt kan integrere bæredygtige metoder og initiativer.\n\nOrganisatoriske værktøjer: Denne sidste fane fokuserer på tiltag, der kan implementeres på organisationsniveau for at fremme bæredygtige praksisser og med omtanke for råstofferne. Her finder du strategier, metoder og bedste praksisser, der kan integreres i virksomhedens kultur og arbejdsprocesser.\n\nDenne strukturerede tilgang skal give læseren mulighed for at finde relevante tiltag baseret på deres specifikke projektkontekst og faglige interesseområder. Uanset om du er involveret i små eller store anlægsprojekter, vil guiden kunne hjælpe dig i retning af mere bæredygtige og ressourceeffektive praksisser inden for anlægsbranchen."]

{"sheet":"Tiltag","index":1,"n_rows":19,"n_cols":10,"rows_kept":19,"cut":false,"hidden":false,"merged":[[1,1,1,2],[4,1,4,2],[16,1,16,2],[18,1,18,2]]}
[]
[null,"Projekttyper eller værktøjer"]
[null,"Vælg den type der bedst beskriver projektet fra rullelisten til højre:"," "]
[]
[null,"Tiltag"]
[null,"Vælg tiltag og/eller materialer der skal være i fokus i projektet:","Markér med 'x'",null," ","VEJPROJEKT","FORSYNING","STORT PROJEKT","BANEPROJEKT","ORGANISATORISKE VÆRKTØJER"]
[null,{"$f":"IF(C3=\"VEJPROJEKT\",VEJKOL[],IF(C3=\"FORSYNING\",FORSKOL[],IF(C3=\"STORT PROJEKT\",STOREKOL[],IF(C3=\"BANEPROJEKT\",BANEKOL[],IF(C3=\"ORGANISATORISKE VÆRKTØJER\",ORGKOL[],\"\")))))","v":""},null,null,null,"Tidlige tiltag","Tidlige tiltag","Tidlige tiltag","Tidlige tiltag","Digital Tilbudsliste (DTBL)"]
[null,null,null,null,null,"Håndtering af jord på eller nær byggepladsen","Håndtering af jord på eller nær byggepladsen","Håndtering af jord på eller nær byggepladsen","Håndtering af jord på eller nær byggepladsen","Materialestrømsanalyse (MFA, Mass Flow Analysis). "]
[null,null,null,null,null,"Myndighedsbehandling","Myndighedsbehandling","Asfalt","Myndighedsbehandling","Materialehåndteringsplan (MHP)"]
[null,null,null,null,null,"Asfalt","Asfalt","Grus","Grus","Udbudsparadigmer"]
[null,null,null,null,null,"Grus","Grus","Beton","Beton","Materialeplads eller Jorddepot"]
[null,null,null,null,null,"Beton","Beton","Granit","Granit"]
[null,null,null,null,null,"Granit","Granit","Minimering af spild og affald","Minimering af spild og affald"]
[null,null,null,null,null,"Minimering af spild og affald","Minimering af spild og affald","Detaljeringsniveauet af udførelsen","Detaljeringsniveauet af udførelsen"]
[null,null,null,null,null,"Detaljeringsniveauet af udførelsen","Detaljeringsniveauet af udførelsen"]
[]
[null,"HUSK at trykke på knappen til højre for at formattere cellehøjden og give en bedre læseoplevelse."]
[]
[null,"Gå nu til den fane/det ark som du har valgt fra rullelisten tidligere. Scroll ned til det eller de tiltag du har markeret interesse for. Herfra kan du scrolle horisontalt for at se de forskellige faser i en entreprise."]

{"sheet":"VEJ- OG STIPROJEKT","index":2,"n_rows":34,"n_cols":16,"rows_kept":34,"cut":false,"hidden":false,"merged":[[0,1,0,2]]}
[null,"Scroll ned for valgte tiltag\nScroll hen for at se faser"]
[null,"Tiltag","Beskrivelse","Behov, som afdækkes","Planlægning","Rådgiverudbud","Forslagsfase","Udbudsprojekt","Entreprenørudbud","Projektgennemgangsmøde","Udførelse","Afslutning","Evaluering","Drift","1 og 5 års eftersyn","CO2-reduktion"]
[null,"Tidlige tiltag"]
[null,{"$f":"IF(Tiltag!C3=\"VEJPROJEKT\",IF(Tiltag!C7=\"X\",TRANSPOSE(VEJFASE[Kolonne2])),\"IKKE VALGT\")","v":"IKKE VALGT"}]
[null,"Håndtering af jord på eller nær byggepladsen"]
[null,{"$f":"IF(Tiltag!C3=\"VEJPROJEKT\",IF(Tiltag!C8=\"X\",TRANSPOSE(VEJFASE[Kolonne4])),\"IKKE VALGT\")","v":"IKKE VALGT"}]
[null,{"$f":"IF(Tiltag!C3=\"VEJPROJEKT\",IF(Tiltag!C8=\"X\",TRANSPOSE(VEJFASE[Kolonne5])),\"IKKE VALGT\")","v":"IKKE VALGT"}]
[null,{"$f":"IF(Tiltag!C3=\"VEJPROJEKT\",IF(Tiltag!C8=\"X\",TRANSPOSE(VEJFASE[Kolonne6])),\"IKKE VALGT\")","v":"IKKE VALGT"}]
[null,{"$f":"IF(Tiltag!C3=\"VEJPROJEKT\",IF(Tiltag!C8=\"X\",TRANSPOSE(VEJFASE[Kolonne7])),\"IKKE VALGT\")","v":"IKKE VALGT"}]
[null,{"$f":"IF(Tiltag!C3=\"VEJPROJEKT\",IF(Tiltag!C8=\"X\",TRANSPOSE(VEJFASE[Kolonne8])),\"IKKE VALGT\")","v":"IKKE VALGT"}]
[null,"Myndighedsbehandling"]
[null,{"$f":"IF(Tiltag!C3=\"VEJPROJEKT\",IF(Tiltag!C9=\"X\",TRANSPOSE(VEJFASE[Kolonne10])),\"IKKE VALGT\")","v":"IKKE VALGT"}]
[null,"Asfalt"]
[null,{"$f":"IF(Tiltag!C3=\"VEJPROJEKT\",IF(Tiltag!C10=\"X\",TRANSPOSE(VEJFASE[Kolonne13])),\"IKKE VALGT\")","v":"IKKE VALGT"}]
[null,{"$f":"IF(Tiltag!C3=\"VEJPROJEKT\",IF(Tiltag!C10=\"X\",TRANSPOSE(VEJFASE[Kolonne14])),\"IKKE VALGT\")","v":"IKKE VALGT"}]
[null,{"$f":"IF(Tiltag!C3=\"VEJPROJEKT\",IF(Tiltag!C10=\"X\",TRANSPOSE(VEJFASE[Kolonne15])),\"IKKE VALGT\")","v":"IKKE VALGT"}]
[null,{"$f":"IF(Tiltag!C3=\"VEJPROJEKT\",IF(Tiltag!C10=\"X\",TRANSPOSE(VEJFASE[Kolonne16])),\"IKKE VALGT\")","v":"IKKE VALGT"}]
[null,"Grus"]
[null,{"$f":"IF(Tiltag!C3=\"VEJPROJEKT\",IF(Tiltag!C11=\"X\",TRANSPOSE(VEJFASE[Kolonne18])),\"IKKE VALGT\")","v":"IKKE VALGT"}]
[null,{"$f":"IF(Tiltag!C3=\"VEJPROJEKT\",IF(Tiltag!C11=\"X\",TRANSPOSE(VEJFASE[Kolonne19])),\"IKKE VALGT\")","v":"IKKE VALGT"}]
[null,"Beton"]
[null,{"$f":"IF(Tiltag!C3=\"VEJPROJEKT\",IF(Tiltag!C12=\"X\",TRANSPOSE(VEJFASE[Kolonne21])),\"IKKE VALGT\")","v":"IKKE VALGT"}]
[null,"Granit"]
[null,{"$f":"IF(Tiltag!C3=\"VEJPROJEKT\",IF(Tiltag!C13=\"X\",TRANSPOSE(VEJFASE[Kolonne23])),\"IKKE VALGT\")","v":"IKKE VALGT"}]
[null,{"$f":"IF(Tiltag!C3=\"VEJPROJEKT\",IF(Tiltag!C13=\"X\",TRANSPOSE(VEJFASE[Kolonne24])),\"IKKE VALGT\")","v":"IKKE VALGT"}]
[null,{"$f":"IF(Tiltag!C3=\"VEJPROJEKT\",IF(Tiltag!C13=\"X\",TRANSPOSE(VEJFASE[Kolonne25])),\"IKKE VALGT\")","v":"IKKE VALGT"}]
[null,{"$f":"IF(Tiltag!C3=\"VEJPROJEKT\",IF(Tiltag!C13=\"X\",TRANSPOSE(VEJFASE[Kolonne26])),\"IKKE VALGT\")","v":"IKKE VALGT"}]
[null,"Minimering af spild og affald"]
[null,{"$f":"IF(Tiltag!C3=\"VEJPROJEKT\",IF(Tiltag!C14=\"X\",TRANSPOSE(VEJFASE[Kolonne29])),\"IKKE VALGT\")","v":"IKKE VALGT"}]
[null,{"$f":"IF(Tiltag!C3=\"VEJPROJEKT\",IF(Tiltag!C14=\"X\",TRANSPOSE(VEJFASE[Kolonne30])),\"IKKE VALGT\")","v":"IKKE VALGT"}]
[null,{"$f":"IF(Tiltag!C3=\"VEJPROJEKT\",IF(Tiltag!C14=\"X\",TRANSPOSE(VEJFASE[Kolonne31])),\"IKKE VALGT\")","v":"IKKE VALGT"}]
[null,{"$f":"IF(Tiltag!C3=\"VEJPROJEKT\",IF(Tiltag!C14=\"X\",TRANSPOSE(VEJFASE[Kolonne32])),\"IKKE VALGT\")","v":"IKKE VALGT"}]
[null,"Detaljeringsniveauet af udførelsen"]
[null,{"$f":"IF(Tiltag!C3=\"VEJPROJEKT\",IF(Tiltag!C15=\"X\",TRANSPOSE(VEJFASE[Kolonne34])),\"IKKE VALGT\")","v":"IKKE VALGT"}]

{"sheet":"FORSYNING","index":3,"n_rows":27,"n_cols":16,"rows_kept":27,"cut":false,"hidden":false,"merged":[[0,1,0,2]]}
[null,"Scroll ned for valgte tiltag\nScroll hen for at se faser"]
[null,"Tiltag","Beskrivelse","Behov, som afdækkes","Planlægning","Rådgiverudbud","Forslagsfase","Udbudsprojekt","Entreprenørudbud","Projektgennemgangsmøde","Udførelse","Afslutning","Evaluering","Drift","1 og 5 års eftersyn","CO2-reduktion"]
[null,"Tidlige tiltag"]
[null,{"$f":"IF(Tiltag!C3=\"FORSYNING\",IF(Tiltag!C7=\"X\",TRANSPOSE(FORSFASE[Kolonne3])),\"IKKE VALGT\")","v":"IKKE VALGT"}]
[null,{"$f":"IF(Tiltag!C3=\"FORSYNING\",IF(Tiltag!C7=\"X\",TRANSPOSE(FORSFASE[Kolonne4])),\"IKKE VALGT\")","v":"IKKE VALGT"}]
[null,"Håndtering af jord på eller nær byggepladsen"]
[null,{"$f":"IF(Tiltag!C3=\"FORSYNING\",IF(Tiltag!C8=\"X\",TRANSPOSE(FORSFASE[Kolonne6])),\"IKKE VALGT\")","v":"IKKE VALGT"}]
[null,{"$f":"IF(Tiltag!C3=\"FORSYNING\",IF(Tiltag!C8=\"X\",TRANSPOSE(FORSFASE[Kolonne7])),\"IKKE VALGT\")","v":"IKKE VALGT"}]
[null,{"$f":"IF(Tiltag!C3=\"FORSYNING\",IF(Tiltag!C8=\"X\",TRANSPOSE(FORSFASE[Kolonne8])),\"IKKE VALGT\")","v":"IKKE VALGT"}]
[null,{"$f":"IF(Tiltag!C3=\"FORSYNING\",IF(Tiltag!C8=\"X\",TRANSPOSE(FORSFASE[Kolonne9])),\"IKKE VALGT\")","v":"IKKE VALGT"}]
[null,"Myndighedsbehandling"]
[null,{"$f":"IF(Tiltag!C3=\"FORSYNING\",IF(Tiltag!C9=\"X\",TRANSPOSE(FORSFASE[Kolonne11])),\"IKKE VALGT\")","v":"IKKE VALGT"}]
[null,"Asfalt"]
[null,{"$f":"IF(Tiltag!C3=\"FORSYNING\",IF(Tiltag!C10=\"X\",TRANSPOSE(FORSFASE[Kolonne14])),\"IKKE VALGT\")","v":"IKKE VALGT"}]
[null,"Grus"]
[null,{"$f":"IF(Tiltag!C3=\"FORSYNING\",IF(Tiltag!C11=\"X\",TRANSPOSE(FORSFASE[Kolonne16])),\"IKKE VALGT\")","v":"IKKE VALGT"}]
[null,"Beton"]
[null,{"$f":"IF(Tiltag!C3=\"FORSYNING\",IF(Tiltag!C12=\"X\",TRANSPOSE(FORSFASE[Kolonne18])),\"IKKE VALGT\")","v":"IKKE VALGT"}]
[null,"Granit"]
[null,{"$f":"IF(Tiltag!C3=\"FORSYNING\",IF(Tiltag!C13=\"X\",TRANSPOSE(FORSFASE[Kolonne20])),\"IKKE VALGT\")","v":"IKKE VALGT"}]
[null,"Minimering af spild og affald"]
[null,{"$f":"IF(Tiltag!C3=\"FORSYNING\",IF(Tiltag!C14=\"X\",TRANSPOSE(FORSFASE[Kolonne23])),\"IKKE VALGT\")","v":"IKKE VALGT"}]
[null,{"$f":"IF(Tiltag!C3=\"FORSYNING\",IF(Tiltag!C14=\"X\",TRANSPOSE(FORSFASE[Kolonne24])),\"IKKE VALGT\")","v":"IKKE VALGT"}]
[null,{"$f":"IF(Tiltag!C3=\"FORSYNING\",IF(Tiltag!C14=\"X\",TRANSPOSE(FORSFASE[Kolonne25])),\"IKKE VALGT\")","v":"IKKE VALGT"}]
[null,{"$f":"IF(Tiltag!C3=\"FORSYNING\",IF(Tiltag!C14=\"X\",TRANSPOSE(FORSFASE[Kolonne26])),\"IKKE VALGT\")","v":"IKKE VALGT"}]
[null,"Detaljeringsniveauet af udførelsen"]
[null,{"$f":"IF(Tiltag!C3=\"FORSYNING\",IF(Tiltag!C15=\"X\",TRANSPOSE(FORSFASE[Kolonne28])),\"IKKE VALGT\")","v":"IKKE VALGT"}]

{"sheet":"STORT PROJEKT","index":4,"n_rows":30,"n_cols":15,"rows_kept":30,"cut":false,"hidden":false,"merged":[[0,1,0,2]]}
[null,"Scroll ned for valgte tiltag\nScroll hen for at se faser"]
[null,"Tiltag","Beskrivelse","Behov, som afdækkes","Planlægning","Udbudsprojekt","Totalentrepriseudbud","Forslagsfase","Projektgennemgangsmøde","Udførelse","Afslutning","Evaluering","Drift","1 og 5 års eftersyn","CO2-reduktion"]
[null,"Tidlige tiltag"]
[null,{"$f":"IF(Tiltag!C3=\"STORT PROJEKT\",IF(Tiltag!C7=\"X\",TRANSPOSE(STORTFASE[Kolonne3])),\"IKKE VALGT\")","v":"IKKE VALGT"}]
[null,{"$f":"IF(Tiltag!C3=\"STORT PROJEKT\",IF(Tiltag!C7=\"X\",TRANSPOSE(STORTFASE[Kolonne4])),\"IKKE VALGT\")","v":"IKKE VALGT"}]
[null,{"$f":"IF(Tiltag!C3=\"STORT PROJEKT\",IF(Tiltag!C7=\"X\",TRANSPOSE(STORTFASE[Kolonne5])),\"IKKE VALGT\")","v":"IKKE VALGT"}]
[null,{"$f":"IF(Tiltag!C3=\"STORT PROJEKT\",IF(Tiltag!C7=\"X\",TRANSPOSE(STORTFASE[Kolonne6])),\"IKKE VALGT\")","v":"IKKE VALGT"}]
[null,{"$f":"IF(Tiltag!C3=\"STORT PROJEKT\",IF(Tiltag!C7=\"X\",TRANSPOSE(STORTFASE[Kolonne7])),\"IKKE VALGT\")","v":"IKKE VALGT"}]
[null,"Håndtering af jord på eller nær byggepladsen"]
[null,{"$f":"IF(Tiltag!C3=\"STORT PROJEKT\",IF(Tiltag!C8=\"X\",TRANSPOSE(STORTFASE[Kolonne9])),\"IKKE VALGT\")","v":"IKKE VALGT"}]
[null,{"$f":"IF(Tiltag!C3=\"STORT PROJEKT\",IF(Tiltag!C8=\"X\",TRANSPOSE(STORTFASE[Kolonne10])),\"IKKE VALGT\")","v":"IKKE VALGT"}]
[null,"Asfalt"]
[null,{"$f":"IF(Tiltag!C3=\"STORT PROJEKT\",IF(Tiltag!C9=\"X\",TRANSPOSE(STORTFASE[Kolonne13])),\"IKKE VALGT\")","v":"IKKE VALGT"}]
[null,{"$f":"IF(Tiltag!C3=\"STORT PROJEKT\",IF(Tiltag!C9=\"X\",TRANSPOSE(STORTFASE[Kolonne14])),\"IKKE VALGT\")","v":"IKKE VALGT"}]
[null,{"$f":"IF(Tiltag!C3=\"STORT PROJEKT\",IF(Tiltag!C9=\"X\",TRANSPOSE(STORTFASE[Kolonne15])),\"IKKE VALGT\")","v":"IKKE VALGT"}]
[null,"Grus"]
[null,{"$f":"IF(Tiltag!C3=\"STORT PROJEKT\",IF(Tiltag!C10=\"X\",TRANSPOSE(STORTFASE[Kolonne17])),\"IKKE VALGT\")","v":"IKKE VALGT"}]
[null,{"$f":"IF(Tiltag!C3=\"STORT PROJEKT\",IF(Tiltag!C10=\"X\",TRANSPOSE(STORTFASE[Kolonne18])),\"IKKE VALGT\")","v":"IKKE VALGT"}]
[null,{"$f":"IF(Tiltag!C3=\"STORT PROJEKT\",IF(Tiltag!C10=\"X\",TRANSPOSE(STORTFASE[Kolonne19])),\"IKKE VALGT\")","v":"IKKE VALGT"}]
[null,"Beton"]
[null,{"$f":"IF(Tiltag!C3=\"STORT PROJEKT\",IF(Tiltag!C11=\"X\",TRANSPOSE(STORTFASE[Kolonne21])),\"IKKE VALGT\")","v":"IKKE VALGT"}]
[null,"Granit"]
[null,{"$f":"IF(Tiltag!C3=\"STORT PROJEKT\",IF(Tiltag!C12=\"X\",TRANSPOSE(STORTFASE[Kolonne23])),\"IKKE VALGT\")","v":"IKKE VALGT"}]
[null,"Minimering af spild og affald"]
[null,{"$f":"IF(Tiltag!C3=\"STORT PROJEKT\",IF(Tiltag!C13=\"X\",TRANSPOSE(STORTFASE[Kolonne26])),\"IKKE VALGT\")","v":"IKKE VALGT"}]
[null,{"$f":"IF(Tiltag!C3=\"STORT PROJEKT\",IF(Tiltag!C13=\"X\",TRANSPOSE(STORTFASE[Kolonne27])),\"IKKE VALGT\")","v":"IKKE VALGT"}]
[null,{"$f":"IF(Tiltag!C3=\"STORT PROJEKT\",IF(Tiltag!C13=\"X\",TRANSPOSE(STORTFASE[Kolonne28])),\"IKKE VALGT\")","v":"IKKE VALGT"}]
[null,{"$f":"IF(Tiltag!C3=\"STORT PROJEKT\",IF(Tiltag!C13=\"X\",TRANSPOSE(STORTFASE[Kolonne29])),\"IKKE VALGT\")","v":"IKKE VALGT"}]
[null,"Detaljeringsniveauet af udførelsen"]
[null,{"$f":"IF(Tiltag!C3=\"STORT PROJEKT\",IF(Tiltag!C14=\"X\",TRANSPOSE(STORTFASE[Kolonne31])),\"IKKE VALGT\")","v":"IKKE VALGT"}]

{"sheet":"BANEPROJEKT","index":5,"n_rows":31,"n_cols":14,"rows_kept":31,"cut":false,"hidden":false,"merged":[[0,1,0,2]]}
[null,"Scroll ned for valgte tiltag\nScroll hen for at se faser"]
[null,"Tiltag","Beskrivelse","Behov, som afdækkes","Afgrænsning","Detailprojektering","Entreprenørudbud","Projektgennemgang m. entreprenør","Udførelse","Afslutning","Evaluering af samarbejdet med myndighederne","Drift","1 og 5 års eftersyn","CO2-reduktion"]
[null,"Tidlige tiltag"]
[null,{"$f":"IF(Tiltag!C3=\"BANEPROJEKT\",IF(Tiltag!C7=\"X\",TRANSPOSE(BANEFASE[Kolonne3])),\"IKKE VALGT\")","v":"IKKE VALGT"}]
[null,"Håndtering af jord på eller nær byggepladsen"]
[null,{"$f":"IF(Tiltag!C3=\"BANEPROJEKT\",IF(Tiltag!C7=\"X\",TRANSPOSE(BANEFASE[Kolonne5])),\"IKKE VALGT\")","v":"IKKE VALGT"}]
[null,{"$f":"IF(Tiltag!C3=\"BANEPROJEKT\",IF(Tiltag!C7=\"X\",TRANSPOSE(BANEFASE[Kolonne6])),\"IKKE VALGT\")","v":"IKKE VALGT"}]
[null,{"$f":"IF(Tiltag!C3=\"BANEPROJEKT\",IF(Tiltag!C7=\"X\",TRANSPOSE(BANEFASE[Kolonne7])),\"IKKE VALGT\")","v":"IKKE VALGT"}]
[null,{"$f":"IF(Tiltag!C3=\"BANEPROJEKT\",IF(Tiltag!C7=\"X\",TRANSPOSE(BANEFASE[Kolonne8])),\"IKKE VALGT\")","v":"IKKE VALGT"}]
[null,{"$f":"IF(Tiltag!C3=\"BANEPROJEKT\",IF(Tiltag!C7=\"X\",TRANSPOSE(BANEFASE[Kolonne9])),\"IKKE VALGT\")","v":"IKKE VALGT"}]
[null,"Myndighedsbehandling"]
[null,{"$f":"IF(Tiltag!C3=\"BANEPROJEKT\",IF(Tiltag!C7=\"X\",TRANSPOSE(BANEFASE[Kolonne11])),\"IKKE VALGT\")","v":"IKKE VALGT"}]
[null,"Grus"]
[null,{"$f":"IF(Tiltag!C3=\"BANEPROJEKT\",IF(Tiltag!C10=\"X\",TRANSPOSE(BANEFASE[Kolonne14])),\"IKKE VALGT\")","v":"IKKE VALGT"}]
[null,{"$f":"IF(Tiltag!C3=\"BANEPROJEKT\",IF(Tiltag!C10=\"X\",TRANSPOSE(BANEFASE[Kolonne15])),\"IKKE VALGT\")","v":"IKKE VALGT"}]
[null,{"$f":"IF(Tiltag!C3=\"BANEPROJEKT\",IF(Tiltag!C10=\"X\",TRANSPOSE(BANEFASE[Kolonne16])),\"IKKE VALGT\")","v":"IKKE VALGT"}]
[null,"Beton"]
[null,{"$f":"IF(Tiltag!C3=\"BANEPROJEKT\",IF(Tiltag!C11=\"X\",TRANSPOSE(BANEFASE[Kolonne18])),\"IKKE VALGT\")","v":"IKKE VALGT"}]
[null,{"$f":"IF(Tiltag!C3=\"BANEPROJEKT\",IF(Tiltag!C11=\"X\",TRANSPOSE(BANEFASE[Kolonne19])),\"IKKE VALGT\")","v":"IKKE VALGT"}]
[null,"Granit"]
[null,{"$f":"IF(Tiltag!C3=\"BANEPROJEKT\",IF(Tiltag!C12=\"X\",TRANSPOSE(BANEFASE[Kolonne21])),\"IKKE VALGT\")","v":"IKKE VALGT"}]
[null,{"$f":"IF(Tiltag!C3=\"BANEPROJEKT\",IF(Tiltag!C12=\"X\",TRANSPOSE(BANEFASE[Kolonne22])),\"IKKE VALGT\")","v":"IKKE VALGT"}]
[null,{"$f":"IF(Tiltag!C3=\"BANEPROJEKT\",IF(Tiltag!C12=\"X\",TRANSPOSE(BANEFASE[Kolonne23])),\"IKKE VALGT\")","v":"IKKE VALGT"}]
[null,{"$f":"IF(Tiltag!C3=\"BANEPROJEKT\",IF(Tiltag!C12=\"X\",TRANSPOSE(BANEFASE[Kolonne24])),\"IKKE VALGT\")","v":"IKKE VALGT"}]
[null,"Minimering af spild og affald"]
[null,{"$f":"IF(Tiltag!C3=\"BANEPROJEKT\",IF(Tiltag!C13=\"X\",TRANSPOSE(BANEFASE[Kolonne27])),\"IKKE VALGT\")","v":"IKKE VALGT"}]
[null,{"$f":"IF(Tiltag!C3=\"BANEPROJEKT\",IF(Tiltag!C13=\"X\",TRANSPOSE(BANEFASE[Kolonne28])),\"IKKE VALGT\")","v":"IKKE VALGT"}]
[null,{"$f":"IF(Tiltag!C3=\"BANEPROJEKT\",IF(Tiltag!C13=\"X\",TRANSPOSE(BANEFASE[Kolonne29])),\"IKKE VALGT\")","v":"IKKE VALGT"}]
[null,{"$f":"IF(Tiltag!C3=\"BANEPROJEKT\",IF(Tiltag!C13=\"X\",TRANSPOSE(BANEFASE[Kolonne30])),\"IKKE VALGT\")","v":"IKKE VALGT"}]
[null,"Detaljeringsniveauet af udførelsen"]
[null,{"$f":"IF(Tiltag!C3=\"BANEPROJEKT\",IF(Tiltag!C14=\"X\",TRANSPOSE(BANEFASE[Kolonne32])),\"IKKE VALGT\")","v":"IKKE VALGT"}]

{"sheet":"ORGANISATORISKE VÆRKTØJER","index":6,"n_rows":7,"n_cols":8,"rows_kept":7,"cut":false,"hidden":false,"merged":[]}
[null,"Scroll ned for valgte tiltag\nScroll hen for at se faser"]
[null,"Tiltag","Beskrivelse","Behov, som afdækkes","Budget","Kompatibilitet","Integration","Mulighedsskabelse"]
[null,{"$f":"IF(Tiltag!C3=\"ORGANISATORISKE VÆRKTØJER\",IF(Tiltag!C7=\"X\",TRANSPOSE(ORGFASE[Kolonne2])),\"IKKE VALGT\")","v":"IKKE VALGT"}]
[null,{"$f":"IF(Tiltag!C3=\"ORGANISATORISKE VÆRKTØJER\",IF(Tiltag!C8=\"X\",TRANSPOSE(ORGFASE[Kolonne3])),\"IKKE VALGT\")","v":"IKKE VALGT"}]
[null,{"$f":"IF(Tiltag!C3=\"ORGANISATORISKE VÆRKTØJER\",IF(Tiltag!C9=\"X\",TRANSPOSE(ORGFASE[Kolonne4])),\"IKKE VALGT\")","v":"IKKE VALGT"}]
[null,{"$f":"IF(Tiltag!C3=\"ORGANISATORISKE VÆRKTØJER\",IF(Tiltag!C10=\"X\",TRANSPOSE(ORGFASE[Kolonne5])),\"IKKE VALGT\")","v":"IKKE VALGT"}]
[null,{"$f":"IF(Tiltag!C3=\"ORGANISATORISKE VÆRKTØJER\",IF(Tiltag!C11=\"X\",TRANSPOSE(ORGFASE[Kolonne6])),\"IKKE VALGT\")","v":"IKKE VALGT"}]

{"sheet":"DATA_VEJPROJEKT","index":7,"n_rows":16,"n_cols":36,"rows_kept":16,"cut":false,"hidden":true,"merged":[[1,0,3,0]]}
[null,"Trin for trin-guide for implementering af tiltag, som reducerer råstofforbruget, på vej- og stiprojekter.","Kolonne1","Kolonne2","Kolonne3","Kolonne4","Kolonne5","Kolonne6","Kolonne7","Kolonne8","Kolonne9","Kolonne10","Kolonne11","Kolonne12","Kolonne13","Kolonne14","Kolonne15","Kolonne16","Kolonne17","Kolonne18","Kolonne19","Kolonne20","Kolonne21","Kolonne22","Kolonne23","Kolonne24","Kolonne25","Kolonne26","Kolonne27","Kolonne28","Kolonne29","Kolonne30","Kolonne31","Kolonne32","Kolonne33","Kolonne34"]
[null,null,"Tidlige tiltag","Ressourcekortlægning (RK)","Håndtering af jord på eller nær byggepladsen","Arbejdsdepot, oplagsareal indenfor matriklen","Forundersøgelser og Selektiv opgravning","Kalkstabilisering","Reetabler, som udgangspunkt, med opgravede materialer ","Lukke byggepladser hen over vinteren, hvor det er muligt (Årstidsplanlægning)","Myndighedsbehandling","Myndighedsbehandling\n\n ","Materialer","Asfalt","Højere genbrugsandel i asfalt","Koldblandet asfalt","Knust beton i GAB","Selektiv affræsning / opbrydning","Grus","Anvendelse af forbrændingsslagge til bundsikring eller stabilgrus","Knust asfalt og beton som genbrugsstabil","Beton","Øget genbrug af fortovsfliser","Granit","Chaussesten ","Brosten","Bordursten","Kantsten, fast og kløvet","Optimering af udførslen i forhold til direkte og indirekte råstofforbrug","Minimering af spild og affald","Digital lagring og modtagekontrol","Skræddersyet leverancer","Opbevaring, sortering og dokumentering af det affald, som ikke kan undgås","Optimeret intern logistik og fragt","Detaljeringsniveauet af udførelsen","Passende BIM-niveau"]
[null,"Beskrivelse",null,"Bygge- og anlægsmaterialer skal ses som ressourcer. Ressourcekortlægning går ud på at kortlægge materialer, som kan genanvendes direkte på samme projekt, samt lægge en plan for hvordan man håndterer de materialer, som ikke kan genanvendes på pågældende projekt. \nHåndteringen går både på udførelsesmetoder, opbevaring, genanvendelse og bortskaffelse/deponering. Målet er at det skal være et værktøj til at planlægge og indsamle data om genanvendelse.",null,"Opgravet jord skal opbevares og behandles i henhold til muligheden for at skabe størst værdi for bygherren, både i forhold til ressourceforbrug og økonomi","Selektiv opgravning kan være et vigtigt redskab til at sikre, at jord inddeles efter klasse og kvalitet. En effektiv inddeling og opbevaring af opgravede materialer er nødvendig for at reducere råstofforbruget. For at planlægge Selektiv opgravning, skal der være et passende kendskab til de materialer, som skal opgraves. Det passende kendskab vil traditionelt sikres ved passende forundersøgelser, dette kan fx gøres i forbindelse med en Ressourcekortlægning.","Kalkstabilisering er en teknik, der anvendes til at forbedre jordens egenskaber og stabilisere den til brug i anlægsprojekter. Kalkstabilisering har været brugt i mange år, og der findes gængse standarder på området, fx har Vejdirektoratet en vejregel på området.","Når materialer opgraves, er det i flest tilfælde tilsvarende materialer, som ligger umiddelbart rundt om udgravningen. Det betyder, at ved gunstig opbevaring og håndtering, at det i mange tilfælde vil kunne genindbygges.\n\nI mange tilfælde kan der argumenteres imod de høje krav til indbygningsmaterialer til reetablering efter opgravning. Krav om fx nye eller endda jomfruelige materialer vil være i konflikt med de fleste bygherres behov for at reducere råstofforbruget. Vurderingen af krav til indbygningsmaterialer skal vurderes i forhold til det enkelte projekt. En af mulighederne for, at omgås krav om fx jomfruelige materialer til indbygning, er at have en tidlig dialog med de myndigheder, som skal overtage anlægget.","Mange arbejder i anlægsprojekter er udfordret i vinteren. Det skyldes både kulde og frost, vand og sne og reduceret dagslys, som alt i alt ofte resulterer i mindre produktivitet og at opgravede materialer bliver umedgørlige.",null,"Bygherrer kan opleve, at projekter kan genbruge eller genanvende i forskellig grad afhængig af fx en kommunegrænse eller endda internt i kommunen. Det betyder, at et forsyningsselskab fx kan få tilladelse til at anvende nedknust asfalt og beton som ubunden bærelag under befæstede arealer i en del af et projekt, med afslag i en anden del af det samme projekt, blot fordi projektet har krydset en kommunegrænse. Det fremhævede eksempel er ikke enkeltstående og bunder ikke i miljøhensyn, men i forskellige syn på genbrug, genanvendelse og nyttiggørelse. \nNår bygherrer oplever sådan, eller anden potentielt uhensigtsmæssig myndighedsbehandling, kan det være en hæmsko for reducering af råstofforbruget. Tidlig dialog med relevante myndigheder som vejmyndigheden og miljømyndigheden er afgørende for at sikre et smidigt projektforløb. Ved at engagere myndighederne fra starten kan eventuelle udfordringer, restriktioner og krav identificeres og tages højde for i projektets indledende faser. Dette ikke kun reducerer risikoen for forsinkelser og uforudsete komplikationer, men fremmer også et samarbejdende forhold mellem alle involverede parter. Det styrker også projektets integritet ved at sikre, at det opfylder alle reguleringskrav og beskytter både det naturlige miljø og samfundets interesser.",null,null,"Asfaltbærelag (GAB) tilsættes minimum 60% genbrugsasfalt\nAlle slidlagstyper (herunder SMA) og bindelag tilsættes 30 % slidlagsgenbrug.\nDet er en nødvendighed at affræse (og opbevare) slidlag og bærelag hver for sig.\n\nAnfør krav i udbudapardigmer, alternativt følg rækkens trin","Koldblandede asfalt-bærelag (BSM) kan bruges i forbindelse med vedligeholdelsesarbejder, specielt ved vejstrækninger som er meget nedbrudte i form af langs- og tværgående revner og strækninger hvor nedbrydningen er så markant, at en almindelig slidlagsudskiftning ikke fører til en tilfredsstillende levetid, før næste driftsaktivitet.\nPå mindre veje kan koldblandet asfalt benyttes til at skabe et nyt fundament for vejen, hvorpå der afsluttes med et mindre lag varmblandte asfalt.\nPå visse større veje kan det bruges som belægningsfornyelse, hvor der afsluttes med et mindre lag varmblandet asfalt.","Anvendelse af knust beton i GAB fremfor grusmaterialer. \n\nAnfør krav i udbudapardigmer.","Gammelt slidlag kan blive til ny slidlag og gammel bunden bærelag kan blive til ny asfalt, hvis det affræses eller opbrydes i lag og opbevares hensigtsmæssigt.\n\nLæs eventuelt mere på teknologisk.dk under projektet 'Cirkulær asfaltproduktion i Danmark'. ",null,"Forbrændingsslagge (FS) er et grundigt bearbejdet og kontrolleret restprodukt fra affaldsforbrænding. For nuværende foreskriver VDs udbudsforskrift at det anvendes til og med trafikklasse T4. Forbrændingsslagge er indarbejdet på forsøgsbasis på Nordhavnsvej, der er er en større trafiklasse end T4.\nDialog med vej- og miljømyndigheder er afgørende. Disse skal igangsættes før der arbejdes med tiltaget. Producenter af forbrændingsslagge, kan i mange tilfælde give de nødvendige oplysninger til myndighederne.","KAS (knust asfalt), KAB (knust asfalt-beton) og KBT (Knust betong og tegl) er velkendte materialer. I visse tilfælde kan det give mening, at anvende fremfor jomfruelige grusgravsmaterialer.\n\n",null,"Hvis fortovsfliser kan genbruges, så bør det prioriteres.\n",null,"Genbrug på projekt eller via depot","Genbrug på projekt eller via depot","Genbruges på projektet eller køres i depot.\nHvis ej velegnet (større revner, hakker eller flier): overvej alternativ udnyttelse","Af beton: indgå som tilslag i ny beton eller nedknus til anvendelse som KAB\nAf granit: Genbrug på projekt eller via depot\nAf granit, hvis de er under 50 cm eller beskadiget: overvej alternativ udnyttelse\nRadiekantsten: Genbrug på projekt eller via depot",null,null,"Modtagekontrol sikrer at materialer er i tilstrækkelig kvantitet og kvalitet, således der ikke kommer ubehagelige overraskelser.\nDigital lagring sikrer at dokumentation og data for materialerne er tilgængelige.","Hvis det i projektet er klart defineret, hvad og hvor meget, der skal anvendes, kan en entreprenør i højere grad sikre at der ikke opstår spild. \nBlandt andet kan materialer som gips og beton være relevante.","For at sikre bæredygtig affaldssortering skal vi stille høje krav. ","Formålet med initiativet er reducere forbruget af brændstof og dermed CO2-udledning ved at optimere leverancer og logistik til og på byggepladsen.\nVed bestilling af varer skal der fokuseres på, at levering sker i hele læs, og at lastbilerne kører med den maksimale vægt, så antallet af kørsler reduceres mest muligt.\nDette vægtningskrav skal kombineres med ønsket om, at varer leveres direkte ved indbygningsstedet, hvis det er muligt.\nReturlæs (jord væk fra pladsen og grus til pladsen) skal optimeres – ligeledes ud fra et ønske om at reducere antallet af kørsler.\nEventuelt kan tidsplaner drøftes i samarbejde med leverandører, så leverandørerne kan indarbejde tidsplaner fra flere forskellige kunder og dermed udarbejde en kørselsrute med fulde læs, når der skal leveres varer, så kørslen minimeres mest muligt.\nDer kan f.eks. anvendes udvidet brug af 3D-modeller, hvor leverancer er angivet på modellen, så leverandører kan se, præcist hvor tilkørt materiale skal anvendes. Brug ID-numre og tidsplan (4D), så leverandør/byggeledelse kan planlægge leverancer efter dette.",null,"Hvad skal dit projekt kunne ift BIM og digitalisering? Følgende spørgsmål bør stilles\n - Skal modellerne kunne bruges til drift, herunder CO2 -neutral drift?\n - Skal entreprenørmaskiner kunne arbejde efter modeller?\n - Skal der implementeres en grad af digital tvilling i projektet?\n\nVed at analysere og simulere forskellige design- og konstruktionsalternativer kan man identificere optimerede løsninger, der kræver mindre råmaterialer, samtidig med at de opfylder de nødvendige funktionelle og tekniske krav."]
[null,"Behov, som afdækkes",null,"Reducering af råstofforbrug, øget cirkularitet og styrket Asset Management",null,"Håndtering af jord på eller nær byggepladsen. Dermed at øge genbrug af jord og reducere råstofforbruget og i mange tilfælde mindske udgifter og klimapåvirkning.","Håndtering af jord på eller nær byggepladsen. Effektiv inddeling og håndtering af den jord, som bruges på projektet, andre projekter eller skal bortskaffes, fx i forhold til en Materialehåndteringsplan. \nDermed øges genbrug af jord og reducere råstofforbruget og i mange tilfælde mindskes udgifter og klimapåvirkning.","Minimering af transport af potentielt meget store mængder jord, som i nogle tilfælde kan være svære at komme af med og dermed en stor omkostning, som sjældendt er medregnet.\nUndgå indkøb og transport af jomfruelige råstoffer.","Øge genindbygningsmængden af opgravede materialer. Dermed øge genbrug og reducere råstofforbruget og i mange tilfælde reducere udgifter og klimapåvirkning.","Undgå at skulle bortkøre store mængder materialer, som både medfører uforbeholdsmæssigt store udgifter og stort ressourcetræk.",null,"Der er et behov for en ensartet myndighedsbehandling vedrørende genbrug, genanvendelse og nyttiggørelse. Løsningen kan i mange tilfælde være dialog og tidlig inddragelse, men bygherrer har også et behov for en mere ensartet, og måske endda proaktiv, myndighedsbehandling af genbrug, genanvendelse og nyttiggørelse af materialer.",null,null,"Reducering af råstofforbrug igennem krav til leverandører og producenter","Reducering af råstofforbrug igennem krav til leverandører og producenter","Reducering af råstofforbrug igennem krav til leverandører og producenter","Reducering af råstofforbrug igennem krav til leverandører og producenter",null,"Reducering af råstofforbrug igennem krav til leverandører og producenter","Reducering af råstofforbrug igennem krav til leverandører og producenter",null,"Reducering af råstofforbrug igennem krav til leverandører og producenter",null,"Reducering af råstofforbrug igennem krav til leverandører og producenter","Reducering af råstofforbrug igennem krav til leverandører og producenter","Reducering af råstofforbrug igennem krav til leverandører og producenter","Reducering af råstofforbrug igennem krav til leverandører og producenter",null,null," "," "," "," ",null,"Anvend BIM til at simulere forskellige designalternativer. Brug modellerne til at visualisere og optimere designet, så der anvendes færrest mulige råmaterialer."]
[null,"Planlægning",null,"Skal arbejdet udføres af bygherren selv, eller skal opgaven løses af en ekstern?\nHvilke data er tilgængelige for projektområdet, såsom opmålinger, boreprøver, materiale fra tidligere projekter?\n\nHvis man som bygherrer, vælger selv at stå for ressourcekortlægningen, så skal man overveje hvem, som deltager. Det er værdifuldt at have udførelseskompetencer med i en ressourcekortlægning ift praktiske forhold om arbejdsgange og arbejdsmiljø.\n\nHvis man ikke har en Materialehåndteringsplan (se Organisationsværktøjer), kan en Ressourcekortlægning være en god igangsætter for dette.\n\nSe Ydelsesbeskrivelse for Ressourcekortlægning.",null,"Identificer potentielle oplagsområder inden for projektets matrikel. Overvej, hvordan den opgravede jord kan lagres for at maksimere dens værdi og genanvendelsespotentiale, samtidig med at økonomiske omkostninger minimeres.","Undersøg hvilke data om hvad der er under overfalden der er tilgængelig. Heraf afstem hvilke forundersøgelser der er behov for.\nStart med at identificere områder, der skal opgraves. Udfør indledende forundersøgelser for at få indsigt i jordens kvalitet og klasse. Overvej, hvorvidt data fra Ressourcekortlægningen kan integreres her.\nMan kan med fordel sammentænke det her forslag med både Ressourcekortlægning og Materialehåndteringsplan (under Organisatoriske værktøjer) \n","Identificer områder, hvor jorden er ustabil eller har dårlige bæreevneegenskaber, og hvor kalkstabilisering kan være relevant.\nUdfør jordbundsundersøgelser for at vurdere jordens sammensætning og egenskaber.\nEvaluér om kalkstabilisering er den rette metode til at forbedre jordens bæreevne og stabilitet i de pågældende områder.\n","Det er essentielt at kortlægge hvilke materialer, der sandsynligvis vil blive opgravet under projektet, og hvordan de kan genbruges. Dette indebærer at vurdere materialets kvalitet, mængde og egnethed til reetablering.\nSe også tiltaget Ressourcekortlægning\n\nHvis den pågældende myndighed ikke har klare retningslinjer for opbevaring af materialer, kan der findes inspiration i andre myndigheders krav, herunder Københavns Kommunes.","Kan projektet planlægges, således at udvalgte arbejder undgås om vinteren eller kan byggepladsen lukkes henover vinteret?\nVurder projektets tidsramme og muligheden for at undgå vinterarbejde. Overvej de fordele, såsom reducerede driftsomkostninger, mindre forstyrrelse fra vejrliget og øget sikkerhed for arbejdere.",null,"I planlægningsfasen er det essentielt at igangsætte en tidlig dialog med både vej- og miljømyndighederne. At engagere disse myndigheder kan afklare potentielle udfordringer og sikre, at projektets grundlag respekterer lokale reguleringskrav, miljøstandarder og trafikale forhold. Dette bidrager til en mere smidig og forudsigelig projektudvikling. Samtidig giver det mulighed for at forklare om de mål og visioner, som man som bygherre har på det pågældende projekt. \nDer kan ligeledes tidligt drages inspiration fra andre myndigheder, som har arbejdet progressivt med forskellige tiltag, der reducerer forbruget af jomfruelige råstoffer.",null,null,"Start med at fastlægge projektets mål i forhold til genbrug af asfalt. Med en målsætning om 60% genbrugsasfalt i GAB og 30% i slidlag, er det essentielt at lægge en plan for, hvordan disse procentsatser opnås. Sørg for at det er en del af projektbeskrivelse og/eller anlægsprogram","Del af projektbeskrivelse.\nStart med at vurdere vejens nuværende tilstand for at afgøre, om koldblandet asfalt er det rette valg. Overvej, om det er bedst brugt som et midlertidigt bærelag, som forberedelse til et varmblandet lag, eller som en mere permanent løsning. ","Del af projektbeskrivelse","Identificer potentielle zoner, hvor gammelt slidlag og bærelag findes. Overvej, hvordan disse materialer kan affræses eller opbrydes i lag for at maksimere deres genbrugspotentiale og bevar deres kvalitet.",null,"Overvej mulighederne for at anvende slaggegrus som erstatning for traditionelle materialer i projektet. Dette indebærer at tage hensyn til projektets specifikke behov, trafikbelastning, lokal tilgængelighed af slaggegrus og relevante tekniske specifikationer. Del af projektbeskrivelse. \nSørg for dialog med vej- og miljømyndigheder","Identificer potentielle områder i projektet, hvor KAS og KAB kan anvendes som erstatning for jomfruelige materialer. Analyser de miljømæssige og økonomiske fordele ved at tage denne tilgang. Sørg for at det er en del af en projektbeskrivelse eller et anlægsprogram.\nSørg for dialog med vej- og miljømyndigheder",null,"Start med en vurdering af fortovsflisernes tilstand på projektområdet. Dette vil give en indsigt i, hvilken mængde der potentielt kan genbruges og hvilken forberedelse der kræves for at gøre dem klar til genbrug.\nSamtænk gerne med tiltaget Ressourcekortlægning",null,"Del af projektbeskrivelsen. \nOpmærksomhedspunkt ved Ressourcekortlægning","Del af projektbeskrivelsen. \nOpmærksomhedspunkt ved Ressourcekortlægning","Del af projektbeskrivelsen. \nOpmærksomhedspunkt ved Ressourcekortlægning","Del af projektbeskrivelsen. \nOpmærksomhedspunkt ved Ressourcekortlægning",null,null," ","Identificering og specificering af de nødvendige materialer til projektet. Dette indebærer en detaljeret gennemgang af projektets krav og specifikationer for at sikre, at de rigtige materialer bliver valgt.","Inden byggeprojektet påbegyndes, bør der udarbejdes en affaldsplan. Denne plan identificerer og beskriver de forskellige typer affald, der forventes at blive genereret under projektet, og fastlægger de nødvendige foranstaltninger til opbevaring, sortering og håndtering af affaldet.","En omhyggelig planlægning og koordinering af logistik og fragt er afgørende. Dette indebærer at identificere de nødvendige materialer, udstyr og ressourcer til projektet samt fastlægge leveringstidspunkter og transportmetoder. En tidsplan og logistikplan bør udarbejdes, der tager højde for forskellige faktorer som vejrforhold, trafik, adgangsrestriktioner og byggepladsens indretning.",null,"Definer projektets behov og mål i forhold til BIM. Stil de nødvendige spørgsmål om modellernes brug i drift, entreprenørmaskiners behov og muligheden for en digital tvilling. Beslut hvilket BIM-niveau, der er mest hensigtsmæssigt for projektet.\nHvad er der af eksisterende opmåling eller anden data om projektområdet?"]
[null,"Rådgiverudbud",null,"Man kan bede rådgiver stå for eller bidrage til ressourcekortlægningen.\nHvis ressourcekortlægningen er udført, indskrives i ATR at rådgiver gennemgår og løbende ajourfører.\n",null,"Vælg rådgivere med viden om korrekt jordhåndtering og oplagring. De kan rådgive om, hvordan jorden bedst opbevares for at beskytte dens kvalitet og værdi.","Beskriv ønsket i rådgiverudbuddet. Eventuelt på baggrund af opgave fra rådgiver eller ydelsesbeskrivelse. Da selektiv opgravning ikke er en kendt ydelse eller leverance, vil det være svært at bede om referencer herpå. Men man kan bede rådgiveren beskrive, hvordan de vil sørge for at lave et projekt, der sikrer at de forskellige materialer bliver håndteret bedst i henhold til deres kvalitet.\nTilgængelige data synliggøres\nØnskede forundersøgelser beskrives.","Beskriv kalkstabilisering som et potentielt ønske i projektet.\nSøg rådgivere med erfaring inden for kalkstabilisering. Deres viden kan guide projektet gennem de tekniske aspekter af stabiliseringen, herunder doseringskrav, blandingsmetoder og testprocedurer.\n","Resultat fra planlægning beskrives i rådgiverudbud. Alternativt bedes rådgiver levere en ydelse herom","Fremgå af tidsplan eller som ønske til rådgiverens projektering. Husk at medtag særlige ønsker til midlertidige løsninger, hvis behov herfor. Søg eventuelt rådgivere med erfaring i årstidsplanlægning og de specifikke udfordringer, vinteren kan præsentere for dit projekttype.",null,"Overvej hvem, som håndterer opgaver omkring myndighedsinddragelse. Beskriv hvem, hvad og hvornår i ATR.\n\nVed udvælgelse af rådgivere bør man vælge dem med stærke kompetencer inden for myndighedsdialog. En rådgiver med erfaring i at arbejde sammen med myndigheder om netop jeres ønskede tiltag kan effektivt formidle projektets intentioner og sikre en forståelse for myndighedernes krav og forventninger.",null,null,"Ved udvælgelse af rådgivere bør du fokusere på dem, der har erfaring med høje genbrugsprocenter i asfaltarbejde og kan vejlede i forhold til best practice..\n","Sørg for at engagere rådgivere, der har erfaring med design og specifikationer for koldblandet asfalt.\n","I beskrivelsen og ATR indføres tekst om krav/ønske om anvendelse af ønske/hensigt.\n","I beskrivelsen og ATR indføres tekst om krav/ønske om anvendelse af ønske/hensigt.\n\nOvervej at vælge rådgiver, der har ekspertise inden for selektiv affræsning og opbrydning. Deres viden vil være vigtig for at sikre, at processen udføres korrekt og effektivt.\n",null,"Engagér rådgivere, der har erfaring med anvendelse af slaggegrus, og som kan rådgive om dets egenskaber, fordele og begrænsninger i forhold til projektets krav.\n","Sikr dig, at de rådgivere, der udbydes, har erfaring med brugen af KAS og KAB i anlægsprojekter. Deres viden kan være vigtig for at sikre den rigtige anvendelse og kvalitetssikring af materialerne. Arbejdet med KAS og KAB er dog i høj grad standardiseret, derfor bør alle rådgivere kunne håndtere det. Se eventuelt VDs eller KKs bestemmelser om KAS og KAB.\n",null,"Sørg for, at potentielle rådgivere har viden om og erfaring med genbrug af fortovsfliser, og at de kan rådgive om de bedste metoder til dette.\n\n",null,"I beskrivelsen og ATR indføres tekst om krav/ønske om anvendelse af ønske/hensigt.\n\n","I beskrivelsen og ATR indføres tekst om krav/ønske om anvendelse af ønske/hensigt.\n\n","I beskrivelsen og ATR indføres tekst om krav/ønske om anvendelse af ønske/hensigt.\n\n","I beskrivelsen og ATR indføres tekst om krav/ønske om anvendelse af ønske/hensigt.\n\n",null,null," ","I beskrivelsen og ATR indføres tekst om krav/ønske om anvendelse af ønske/hensigt.\n\n\n","I beskrivelsen og ATR indføres tekst om krav/ønske om anvendelse af ønske/hensigt.\n\n\n","I beskrivelsen og ATR indføres tekst om krav/ønske om anvendelse af ønske/hensigt.\n\n\n",null,"Sørg for, at de rådgivende ingeniører og arkitekter har kompetencer inden for det valgte BIM-niveau og kan opfylde de fastsatte krav.\n\n\n"]
[null,"Forslagsfase",null,"Udarbejd en strategisk plan for, hvordan materialerne vil blive håndteret, herunder sortering, opbevaring, genanvendelse, og deponering. Overvej også, hvordan uønskede materialer skal bortskaffes på en miljøvenlig måde.\nSe gerne tiltaget \"Materialehåndteringsplan\" under Organisatoriske værktøjer",null,"Udvikl en detaljeret plan for oplagring af jorden på det valgte område. Dette skal inkludere tiltag for at beskytte jorden mod erosion, kontaminering og vejrforhold.","Udarbejd en plan for, hvordan selektiv opgravning skal udføres, og hvordan jorden efterfølgende skal opbevares baseret på dens klasse og kvalitet. Integrer planen med ressourcekortlægning, hvis relevant.","Designfasen skal inkludere specifikke detaljer om, hvordan kalkstabiliseringen vil blive udført. Dette omfatter valg af materialer, teknikker og maskiner, samt identifikation af mulige udfordringer i terrænet.","Gennemgang af rådgivers forslag eller rådgivers indarbejdelse af bygherres oplæg.\nVælg rådgivere med erfaring i bæredygtige anlægsprojekter, og som forstår vigtigheden af at genbruge opgravede materialer. De vil kunne rådgive om de bedste metoder og teknikker til dette.\nHvis rådgiveren ikke er vant til at arbejde med direkte genbrug af opgravede materialer, kan det give store udfordringer.","Design en plan, der maksimerer effektiviteten i de varmere måneder og minimerer behovet for at arbejde under vanskelige vinterforhold.",null,"Når de første konkrete forslag udarbejdes, bør disse drøftes med de relevante myndigheder. En tæt dialog på dette stadie kan hjælpe med at tilpasse forslagene til myndighedernes forventninger og samtidig identificere mulige udfordringer i god tid.",null,null,"Følg op på best practice. Overvej i øvrigt dialog med lokale asfaltproducenter, så asfalten ikke skal transporteres langt fra eller særproduceres","Udarbejd en teknisk løsning, der benytter koldblandet asfalt. Denne bør overveje trafikmængde, vejbredde, undergrundens beskaffenhed, og ønsket levetid.","Ingen aktion","Udvikl en detaljeret plan for, hvordan affræsning og opbrydning skal udføres. Dette skal inkludere opbevaringsmetoder for de adskilte materialer og beskyttelsestiltag.",null,"Udarbejd forslag til, hvordan slaggegrus kan implementeres i projektet, baseret på teknisk vurdering, økonomiske overvejelser og miljømæssige fordele.","Ingen aktion - tiltaget er i høj grad standardiseret.",null,"Design en plan for, hvordan de genbrugelige fortovsfliser skal indsamles, opbevares, og genlægges i projektet. Hvert skridt skal tage hensyn til flisernes kvalitet og holdbarhed.",null,"Ingen aktion","Ingen aktion","Ingen aktion","Ingen aktion",null,null," ","Opfølgning.\nEr der mulighed for, at tilvælge skræddersyede produkter fremfor standard størrelser?\n"," "," ",null,"Anvend BIM til at simulere forskellige designalternativer. Brug modellerne til at visualisere og optimere designet, så der anvendes færrest mulige råmaterialer.\nRådgiver producerer præcise mængdeudtræk og materialelister baseret på den virtuelle model. Dette gør det muligt at bestille nøjagtigt den mængde materialer, der er behov for til anlægsprojektet, og undgå overbestilling eller spild. Ved at minimere overskydende materialer reduceres råstofforbruget."]
[null,"Udbudsprojekt",null,"Udbudsdokumenter bør klart specificere forventningerne til håndtering af materialer. Dette inkluderer krav til ressourcekortlægning, genanvendelsesstrategier og bortskaffelsesprocedurer.",null,"Inkluder krav og specifikationer for, hvordan den opgravede jord skal opbevares i udbudsdokumenterne. Vær specifik omkring forventningerne til oplagring og beskyttelse af jorden.","Inkluder specifikationer for forundersøgelser og krav til selektiv opgravning. Klargør også, hvordan jord skal klassificeres og opbevares.\n","Udbudsmaterialet skal klart beskrive kravene og forventningerne til kalkstabiliseringen. Dette vil hjælpe potentielle entreprenører med at forstå projektets omfang og sikre, at de byder med de korrekte specifikationer i tankerne.\nSpecificér kravene til stabiliseringen, herunder mængden af kalk og eventuelle andre tilsætningsstoffer.\n","Designfasen bør indeholde en strategi for opbevaring, behandling og genbrug af opgravede materialer. Dette kan inkludere forslag til midlertidige lagringsområder og procedurer for sortering og behandling.","Klargør i udbudsmaterialet, at arbejdet skal struktureres omkring en årstidsplan, der tager hensyn til vinterpausen. Dette vil guide potentielle entreprenører i deres tilbudsgivning.",null,"Ved udarbejdelse af udbudsmaterialet er det vigtigt at inkorporere feedback og krav fra myndighederne, så eventuelle bydere er fuldt informeret om projektets rammer. Dette reducerer risikoen for misforståelser og komplikationer i senere faser.",null,null,"I udbudsmaterialet bør kravene om genbrug klart og utvetydigt fremgå. Dette hjælper med at sikre, at entreprenører forstår og indretter sin bestilling hos asfaltproducenter efter kravene.","Specifikationer for koldblandet asfalt, herunder mixdesign, kvalitet og performancekriterier, bør klart defineres i udbudsmaterialet.",null,"Inkluder krav og specifikationer for selektiv affræsning og opbrydning i udbudsdokumenterne. Dette skal sikre, at de genanvendelige materialer håndteres korrekt.",null,"Specificér klart kravene til slaggegrus i udbudsmaterialet, herunder dets kvalitet, bearbejdning og relevante performancekriterier.","Rådgiver finder mængderne og indskriver i TBL",null,"Rådgiver finder mængderne og indskriver i TBL. SAB beskriver arbejdsgangene. Inkluder klare specifikationer for genbrug af fortovsfliser i udbudsdokumenterne. Dette sikrer, at entreprenører forstår og kan opfylde disse forventninger.",null,"I TBL og TAG anføres at det køres til depot. \nI SAB anføres at det leveres og hentes fra depot.","I TBL og TAG anføres at det køres til depot. \nI SAB anføres at det leveres og hentes fra depot.","I TBL og TAG anføres at det køres til depot. \nI SAB anføres at det leveres og hentes fra depot.","I TBL og TAG anføres at det køres til depot. \nI SAB anføres at det leveres og hentes fra depot.",null,null," ","Opfølgning.\nEr der mulighed for, at tilvælge skræddersyede produkter fremfor standard størrelser?\n","Der bør etableres dedikerede områder til opbevaring af affald på byggepladsen. Disse områder skal være tilstrækkeligt dimensionerede og udstyret med passende affaldscontainere eller beholdere. Affaldet bør placeres sikkert og i overensstemmelse med gældende regler og forordninger for affaldshåndtering.","Byggepladsens adgangsveje og logistikområder skal planlægges og organiseres for at lette den indgående og udgående trafik af materialer og udstyr. Det kan være nødvendigt at etablere midlertidige kørselsveje, losningsområder og lagringspladser for at optimere logistikken og minimere forsinkelser.\n\nDet er vigtigt at byggeleder inddrages i planlægningen af byggepladsen og udførelsestidsplanen",null,"Rådgiver integrerer informationer om materialers egenskaber, levetid og potentiale for genanvendelse i BIM-modellen så der let identificere materialer, der kan genbruges eller genanvendes i andre projekter. \n\nDette sætter et krav til bygherrens Asset Management eller blot lagring af digital viden. Ved indførelse af materialepas, eller lignende, vil dette være et fordel.\n"]
[null,"Entreprenørudbud",null,"Eventuelt prioriter entreprenører med erfaring i genbrug og genanvendelse af specifikke arbejder. Sikr at materialehåndteringen er velbeskrevet i udbuddet.",null,"Afspejles i alle udbudsdokumenter, særligt TBL, TAG, SAB og tegninger.\n\nAlternativt kan man bede entreprenøren om at komme med et oplæg, hvilket vil kræve tid og samarbejde. \nVælg entreprenører, der har erfaring med korrekt jordoplagring. Deres ekspertise vil være afgørende for at beskytte jordens værdi.","Afspejles i alle udbudsdokumenter, særligt TBL, TAG, SAB og tegninger. Der skal fremgå detaljerede planer og snit af forholdende.\n\nAlternativt kan man bede entreprenøren om at komme med et oplæg, hvilket vil kræve tid og samarbejde.","Afspejles i alle udbudsdokumenter, særligt TBL, TAG, SAB og tegninger.\n\nAlternativt kan man bede entreprenøren om at komme med et oplæg, hvilket vil kræve tid og samarbejde.\n\nDet kan være nødvendigt, at entreprenøren viser erfaring med, at arbejde med kalkstabilisering. Deres tekniske kompetence og tidligere erfaring kan være afgørende for projektets succes.","Afspejles i alle udbudsdokumenter, særligt TBL, TAG, SAB og tegninger.\n\nAlternativt kan man bede entreprenøren om at komme med et oplæg, hvilket vil kræve tid og samarbejde.\n\nHvis det stilles som krav, skal udbudsdokumenter klart angive kravene til genbrug af opgravede materialer. Dette sikrer, at entreprenører byder med dette fokus i tankerne og er forberedte på genbrug.\n\nVed valg af entreprenør, prioriter dem med erfaring med genbrug af materialer. Deres ekspertise kan sikre en effektiv gennemførelse.","Eventuel prioriter entreprenører, der har erfaring med at arbejde inden for en stram tidsramme, og som forstår betydningen af årstidsplanlægning. Man kan overveje bonusordning, men det er ikke et 'must'.",null,"Ved modtagelse af bud fra entreprenører bør man sikre, at de har en god forståelse for myndighedskravene. Dette kan sikre en mere effektiv udførelsesfase og mindre risiko for konflikter.",null,null,"Rådgiver indfører krav i TBL, TAG og SAB","Vurder bud fra entreprenører, der har erfaring med lægning af koldblandet asfalt. Det er vigtigt at vælge en entreprenør med korrekt udstyr og teknisk knowhow.","Rådgiver indfører krav i TBL, TAG og SAB","I TBL skrives at bærelag og slidlag affræses og opbevares hver for sig. Desuden leveres slidlag til slidlagsgenbrug og bærelag leveres enten til genbrugsstabil eller genbrugsasfalt hos asfaltmodtager.\nFor at sikre den største grad af cirkulær ressourceudnyttelse, bør fræsning ske ved normal (grov) fræsevalseopsætning.",null,"Vurder eventuel bud fra entreprenører baseret på deres evne og erfaring med at anvende slaggegrus i lignende projekter. Alternativt gør det meget klart, at der stilles krav om anvendelsen af slaggegrus.","Rådgiver indfører krav i TBL, TAG og SAB. Det kan overvejes om der skal udvælges entreprenører med erfaringer med KAS og KAB.",null,"Rådgiver indfører krav i TBL, TAG og SAB.\nOvervej om entreprenøren skal vedlægge en beskrivelse af deres ide til genbrug af fortavsfliser, på baggrund af det projekterede.\nI entreprenørudbud kan der gives fratræk pr. genbrugte fortovsflise. Fx passende med 50% af prisen på en leveret.",null,"Rådgiver indfører krav i TBL, TAG og SAB","Rådgiver indfører krav i TBL, TAG og SAB","Rådgiver indfører krav i TBL, TAG og SAB","Rådgiver indfører krav i TBL, TAG og SAB",null,null,"Bed entreprenøren beskrive, hvordan de vil arbejde med digital modtagekontrol og lagring.\nAlternativt kan der stilles krav til at al dokumentation skal ske digitalt, enten via forudbestemt portal eller mail - indscanning skal undgås."," ","1) indfør som krav i særligt SAB at, eller 2) Bed entreprenøren beskrive hvordan denne vil sikre at: Affaldet sorteres korrekt for at muliggøre genanvendelse og korrekt bortskaffelse. Dette kan omfatte at opstille forskellige beholdere eller containere til specifikke affaldstyper, såsom træ, metal, plast, byggematerialer osv. Arbejdstagerne skal være opmærksomme på de korrekte sorteringsprocedurer og uddannes om affaldshåndtering.","Afspejles i planer i udbud.\nUdpensl hvad entreprenøren skal vise i sin tidsplan.",null,"Entreprenøren skal have muligheden for at styre arbejder efter modeller. "]
[null,"Udførelsesprojekt / projektgennemgangsmøde",null,"Diskuter ressourcekortlægningsplanen i detaljer. Alle parter skal være informeret om, hvordan materialer skal sorteres, opbevares og genanvendes.",null,"Gennemgå oplagringsplanen i detaljer. Sikre, at alle parter forstår, hvordan og hvor jorden skal opbevares, og hvilke beskyttelsestiltag der skal implementeres","Gennemgå i detaljer planen for selektiv opgravning og forundersøgelser. Sikre, at alle parter forstår kravene og procedurerne.","Inden arbejdet begynder, bør alle aspekter af kalkstabilisering gennemgås detaljeret. Dette sikrer, at alle parter forstår processen og er klar over deres roller og ansvar.","Gennemgå planen for opgravning og genbrug af materialer, så alle er på samme side. Diskuter opbevaring, sortering og behandling for at sikre optimal genbrug.","Gennemgå årstidsplanen detaljeret, og sikre at alle aspekter af projektets timing er klare for alle involverede parter.",null,"Inden udførelsen påbegyndes, er det afgørende at gennemgå alle aspekter af projektet med myndighederne. Dette kan afklare eventuelle sidste-minuts spørgsmål og sikre, at projektet er på rette spor.",null,null,"Gennemgang af metoder og processer for affræsning og opbevaring af asfaltmaterialer. Sikr, at slidlag og bærelag affræses separat for at kunne genbruge mest muligt.","Gennemgå detaljeret planlægning af lægningen af den koldblandede asfalt, inklusiv forberedelser, udførelse og afsluttende arbejde."," ","Arbejdsmetoder og materialevalg gennemgåes med entreprenør og optimeringer afsøges.\n\nGennemgå planerne for affræsning og opbrydning i detaljer. Sikre, at alle parter er klare over, hvordan processen skal udføres, og hvilke materialer der skal genanvendes.",null,"Gennemgå planen for anvendelse af slaggegrus med projektets aktører, sikre at alle forstår processen, og fastlæg detaljerne for implementeringen.","Gennemgå planerne for brugen af KAS og KAB i detaljer. Sikre, at alle parter er på samme side, og at der er en fælles forståelse for, hvordan materialerne skal håndteres, særligt hvis entreprenøren ikke har arbejdet med KAS eller KAB før. ",null,"Gennemgå de detaljerede planer for genbrug af fortovsfliser, sikre fælles forståelse blandt alle parter, og juster om nødvendigt.",null,"Arbejdsmetoder og materialevalg gennemgåes med entreprenør og optimeringer afsøges.","Arbejdsmetoder og materialevalg gennemgåes med entreprenør og optimeringer afsøges.","Arbejdsmetoder og materialevalg gennemgåes med entreprenør og optimeringer afsøges.","Arbejdsmetoder og materialevalg gennemgåes med entreprenør og optimeringer afsøges.",null,null,"Arbejdsmetoder og processer gennemgåes med entreprenør og optimeringer afsøges.","Kan entreprenøren optimere? (husk at skræddersyede produkter kan komme med en meromkostning)\nKlar og præcis kommunikation mellem bygherren, entreprenører og leverandører er afgørende. Alle parter skal være enige om specifikationer, mængder, kvalitetsstandarder og leveringstidspunkter for materialerne. Dette sikrer, at de rigtige materialer leveres på det rigtige tidspunkt."," ","Det er vigtigt at entreprenørens bidrag kan implementeres, således der skabes en fælles forståelse for logistik og tidsplan.",null,"Gennemgå BIM-modellen med alle parter for at sikre forståelse og konsensus omkring designet og konstruktionen. Afklar eventuelle uoverensstemmelser."]
[null,"Udførelse",null,"Under byggeprocessen skal ressourcekortlægningens procedurer nøje følges. Dette vil sikre, at materialerne genanvendes korrekt og effektivt, og at affald minimeres.\n\nByggeledelse og fagtilsyn gennemgår arbejdet og dokumentation.",null,"Implementer oplagringsplanen, når jorden opgraves. Følg nøje de fastsatte procedurer for at sikre jordens integritet og værdi.\n\nBillededokumentation og tilsyn af opbevaring.\nMængder leveres som digitale data.","Under opgravningen, følg den udstukne plan nøje. Jord skal sorteres omhyggeligt baseret på dens klasse og kvalitet, og derefter opbevares korrekt. Billededokumentation, leveringsdokumentation, opmåling og tilsyn ","Under selve udførelsen skal kalkstabiliseringen overvåges nøje for at sikre korrekt anvendelse og blandingsforhold. Regelmæssige tests kan være nødvendige for at bekræfte jordens styrke og stabilitet gennem processen.","Under byggeprocessen, sørg for korrekt opbevaring og sortering af de opgravede materialer. Overvågning er nøglen her, da det sikrer, at materialerne forbliver i en tilstand, der er egnet til reetablering.\n\nBillededokumentation og tilsyn af opbevaring.\nMængder leveres som digitale data.","Tilsyn og opfølgning på eventuelle midlertidige løsninger, som påvirker arealer, materialer og trafik.\nImplementer arbejdsplanen, og sørg for at alle milepæle nås rettidigt for at kunne lukke byggepladsen hen over vinteren, som planlagt.",null,"Under udførelsen er det vigtigt at opretholde en løbende dialog med myndighederne, så eventuelle udfordringer kan adresseres hurtigt. Dette kan være med til at undgå unødige forsinkelser og ekstra omkostninger.",null,null,"Byggeledelse og fagtilsyn gennemgår arbejdet og dokumentation.\nOvervåg affræsningsprocessen for at sikre, at materialerne separeres korrekt. Verificer også, at genbrugsprocenterne i de nye asfaltblandinger opfylder kravene.","Overvåg udlægningen af den koldblandede asfalt. Sørg for korrekt komprimering, overfladetemperatur og andre vigtige parametre for at sikre et kvalitetsresultat."," ","Byggeledelse og fagtilsyn gennemgår arbejdet og dokumentation. Overvåg processen nøje for at sikre, at materialerne opbevares og beskyttes korrekt.",null,"Overvåg arbejdet for at sikre, at slaggegruset bruges korrekt, og at alle tekniske specifikationer overholdes.\nByggeledelse og fagtilsyn gennemgår arbejdet og dokumentation.\n","Byggeleder sørger inden start af udførsel at lave en bestilling på genbrugsstabil ",null,"Genbrug fortovsfliserne som planlagt, samtidig med at man sørger for korrekt håndtering, opbevaring, og genlægning for at opnå det bedst mulige resultat.",null,"Byggeledelse og fagtilsyn gennemgår arbejdet og dokumentation.","Byggeledelse og fagtilsyn gennemgår arbejdet og dokumentation.","Byggeledelse og fagtilsyn gennemgår arbejdet og dokumentation.","Byggeledelse og fagtilsyn gennemgår arbejdet og dokumentation.",null,null,"Byggeledelse og fagtilsyn gennemgår arbejdet og dokumentation."," ","Det er vigtigt at opretholde en nøjagtig dokumentation af affaldshåndteringen på byggepladsen. Dette kan omfatte affaldsregistrering, herunder mængder, affaldstyper og destinationen for bortskaffelse eller genanvendelse. Dokumentationen kan være påkrævet af myndighederne eller bruges som en intern kontrolmekanisme.\n\nKontinuerlig overvågning og opfølgning af affaldshåndteringen er vigtig for at sikre, at planen og procedurerne følges korrekt. Byggepladsens personale og ansvarlige parter bør være opmærksomme på og rapportere eventuelle problemer eller afvigelser fra planen, så der kan træffes passende foranstaltninger.","Byggeledelse og fagtilsyn gennemgår arbejdet og dokumentation. \nFor at kunne planlægge arbejdet ordentligt, er det vigtigt at projekteringen er afsluttet og låst.",null,"Brug BIM-modellen som en central reference gennem hele udførelsen. Sikr, at ændringer  afspejles i modellen.\nByggeledelse og fagtilsyn gennemgår arbejdet og dokumentation. "]
[null,"Afslutning",null,"Når byggearbejdet er færdigt, gennemfør en evaluering af ressourcekortlægningen. Dette vil afdække, hvor effektivt materialerne blev genanvendt, og om yderligere forbedringer kan foretages i fremtidige projekter.",null,"Efter projektets afslutning, vurder effektiviteten af jordoplagringsstrategien. Overvej, om der er lektioner, der kan læres for fremtidige projekter.","Efter opgravningen, gennemgå og evaluer processen. Overvej, om der var nogen uforudsete udfordringer, og hvordan de blev håndteret.","Når kalkstabiliseringen er færdig, bør en omfattende kvalitetskontrol udføres. Dette vil bekræfte, at jorden nu har de ønskede egenskaber, og at stabiliseringen har været en succes.","Efter reetablering med de opgravede materialer, gennemfør en kvalitetskontrol for at sikre, at alt er udført korrekt og at genbrugsmaterialerne fungerer som de skal.","Efter afslutning af den aktive byggesæson, sikre en ordentlig nedlukning af byggepladsen for at beskytte materialer, udstyr og allerede færdiggjort arbejde mod vinterelementerne.",null,"Ved projektets afslutning bør der foretages en omhyggelig gennemgang med myndighederne for at sikre, at alle krav og forventninger er opfyldt. Dette kan også bidrage til en lettere godkendelsesproces.",null,null," ","Afslut med det nødvendige lag varmblandet asfalt, hvis det er en del af designet. Verificer at alle arbejder er udført i henhold til specifikationerne."," ","Når projektet er færdigt, vurder effektiviteten af affræsnings- og opbrydningsstrategien. Er der erfaringer, der kan tages med til fremtidige projekter?",null,"Bekræft at anvendelsen af slaggegrus har opfyldt de forventede kvalitetskriterier og at eventuelle opfølgende handlinger er adresseret.",null,null,"Efter projektets afslutning, vurder kvaliteten og effektiviteten af genbrugte fliser i forhold til nyindkøbte.",null," "," "," "," ",null,null," "," "," "," ",null,"Opdater BIM-modellen med den endelige konstruktion. Dette vil være værdifuldt for drift og vedligeholdelse samt eventuelle fremtidige renoveringer.\nModtaget data skal håndteres hensigtsmæssigt for fremtidig brug"]
[null,"Evaluering",null,"Hvad kan vi gøre bedre?\nEvaluering på samarbejde med rådgiver og entreprenør er vigtig.\nEffekt på pris er vigtig.\nMuligheder for optimeringer afsøges til videre brug.",null,"Reflekter over processen med at opbevare jorden på matriklen. Hvad fungerede godt? Hvor kan forbedringer foretages? Feedbacken vil være værdifuld for fremtidige projekter.","Reflekter over processen med forundersøgelser og selektiv opgravning. Identificer hvad der fungerede godt og potentielle områder til forbedring for fremtidige projekter ","Efter projektets afslutning er det vigtigt at reflektere over, hvad der gik godt, og hvor der kunne være forbedringer. Dette kan informere fremtidige projekter og hjælpe med at optimere processen.","Vurder processen og effektiviteten af genbrug. Dette kan bidrage med værdifulde indsigter til fremtidige projekter, som ønsker at inkorporere lignende bæredygtige praksisser. ","Reflekter over effektiviteten af årstidsplanlægningen. Sammenlign omkostningsbesparelser, effektivitet og eventuelle udfordringer, der opstod.",null,"Efter projektets afslutning er det værdifuldt at evaluere samarbejdet med myndighederne. Læringer herfra kan anvendes i fremtidige projekter for at forbedre processen",null,null,"Hvad kan vi gøre bedre?\nEvaluering på samarbejde med rådgiver og entreprenør er vigtig.\nEffekt på pris er vigtig.\nMuligheder for optimeringer afsøges til videre brug.","Vurder performance af den koldblandede asfalt over tid, inklusiv modstandsdygtighed over for trafikbelastning og vejrlig."," ","Reflekter over hele processen. Hvad fungerede godt? Hvor kan forbedringer foretages? Denne feedback vil være værdifuld for fremtidige tiltag.",null,"Sammenlign slaggegrusets performance med traditionelle materialer over tid for at evaluere dets fordele og begrænsninger.",null,null,"Reflekter over processen. Hvad fungerede godt? Hvor kan der laves forbedringer for fremtidige projekter?",null," "," "," "," ",null,null," "," "," ","Hvad kan vi gøre bedre?\nEvaluering på samarbejde med rådgiver og entreprenør er vigtig.\nEffekt på pris er vigtig.\nMuligheder for optimeringer afsøges til videre brug.",null," "]
[null,"Drift",null," "," "," "," ","I driftsfasen er det vigtigt at monitorere de kalkstabiliserede områder for at sikre, at de fortsat præsterer som forventet. Enhver afvigelse eller tegn på degradering bør adresseres hurtigt.","Overvåg de reetablerede områder for at sikre, at genbrugsmaterialerne opfylder deres funktion og forbliver stabile over tid.","Overvågning af byggepladsen gennem vinteren kan være nødvendig, selvom aktiviteten er minimal. Dette sikrer, at alt forbliver intakt og klar til genoptagelse i den efterfølgende byggesæson.",null,"I driftsfasen kan der opstå nye udfordringer, der kræver dialog med myndighederne. En proaktiv tilgang og løbende kommunikation kan hjælpe med at navigere disse udfordringer.",null,null,"Driftsmæssige erfaringer er vigtige.","Overvåg regelmæssigt vejens tilstand, specielt områder med koldblandet asfalt, for at spotte tegn på nedbrydning eller skade."," "," ",null,"Monitorér de områder, hvor slaggegrus er blevet anvendt, for at identificere eventuelle vedligeholdelsesbehov eller ændringer i performance over tid.",null,null,"Hold øje med performance og holdbarhed af de genbrugte fortovsfliser, især i forhold til nyindkøbte. Dette kan hjælpe med fremtidige beslutninger om genbrug.",null," "," "," "," ",null,null," "," "," "," ",null," "]
[null,"1 og 5 års eftersyn",null," ",null," "," ","Eftersynene giver mulighed for at vurdere kalkstabiliseringens langsigtede effektivitet. Eventuelle tegn på ustabilitet eller forringelse kan identificeres og rettes","Eftersynene er en mulighed for at kontrollere de reetablerede områders tilstand, og om de opgravede materialer stadig opfylder deres funktion effektivt."," ",null,"Eftersynene er chancer for at vurdere, hvordan infrastrukturen performer og identificere eventuelle problemer. Inkludering af myndighederne i disse vurderinger kan sikre, at løsningerne eller tiltagene fungerer efter hensigten",null,null," ","Undersøg den koldblandede asfalt for tegn på nedbrydning eller skade. Dette kan give indblik i asfaltens holdbarhed og performance over tid."," "," ",null," "," ",null,"Undersøg de genbrugte fortovsflisers tilstand og sammenlign med forventet levetid og kvalitet",null," "," "," "," ",null,null," "," "," "," ",null," "]
[null,"CO2-reduktion",null,"Genanvendelse af materialer via ressourcekortlægning kan have en positiv indvirkning på projektets CO2-fodaftryk ved at reducere behovet for nye materialer og minimere affald. En vurdering af denne besparelse bør foretages for at kvantificere projektets miljømæssige fordele.",null,"Ved at opbevare jorden lokalt, reduceres behovet for transport, hvilket kan medføre en markant reduktion i CO2-udslippet. Evaluér og dokumentér disse besparelser","Ved at genanvende jorden fra projektstedet og ved at undgå transport og køb af ny jord, kan CO2-udslippet reduceres markant. Evaluér og dokumentér disse besparelser for at demonstrere projektets miljøfordele.","Kalkstabilisering kan bidrage til projektets samlede CO2-aftryk. En vurdering af dette aftryk, herunder transport af materialer og brug af maskiner, bør foretages for at identificere mulige forbedringsområder.","Dette kan føre til store CO2-besparelser. CO2-beregning af antal sparede kørte km kan beregnes. Kan i tilfælde erstatte CO2 udledning fra jomfruelige materialer."," ",null," ",null,null,"14-22 %",0.8,"Link","Genbrug af gammelt slidlag og bærelag reducerer behovet for nye råmaterialer, hvilket kan medføre en markant reduktion i CO2-udslippet fra materialeproduktion. Evaluér og dokumentér disse besparelser ",null,"Link",null,null,"CO2-beregning af antal sparede kørte km kan beregnes. Kan i tilfælde erstatte CO2 udledning fra nye fortovsfliser.",null,"CO2-beregning af antal sparede kørte (og sejlede) km kan beregnes. Kan i tilfælde erstatte CO2 udledning fra nye fortovsfliser.","CO2-beregning af antal sparede kørte (og sejlede) km kan beregnes. Kan i tilfælde erstatte CO2 udledning fra nye fortovsfliser.","CO2-beregning af antal sparede kørte (og sejlede) km kan beregnes. Kan i tilfælde erstatte CO2 udledning fra nye fortovsfliser.","CO2-beregning af antal sparede kørte (og sejlede) km kan beregnes. Kan i tilfælde erstatte CO2 udledning fra nye fortovsfliser.",null,null," "," "," "," ",null," "]

{"sheet":"DATA_FORSYNING","index":8,"n_rows":16,"n_cols":28,"rows_kept":16,"cut":false,"hidden":true,"merged":[]}
["Kolonne1","Kolonne2","Kolonne3","Kolonne4","Kolonne5","Kolonne6","Kolonne7","Kolonne8","Kolonne9","Kolonne10","Kolonne11","Kolonne12","Kolonne13","Kolonne14","Kolonne15","Kolonne16","Kolonne17","Kolonne18","Kolonne19","Kolonne20","Kolonne21","Kolonne22","Kolonne23","Kolonne24","Kolonne25","Kolonne26","Kolonne27","Kolonne28"]
["Anbefaling og initiativer","Tidlige tiltag","Ressourcekortlægning (RK)","Forundersøgelser og Selektiv opgravning","Håndtering af jord på eller nær byggepladsen","Arbejdsdepot, oplagsareal indenfor matriklen","Kalkstabilisering","Reetabler, som udgangspunkt, med opgravede materialer ","Lukke byggepladser hen over vinteren, hvor det er muligt (Årstidsplanlægning)","Myndighedsbehandling","Myndighedsbehandling\n\n","Materialer","Asfalt","Selektiv affræsning / opbrydning","Grus","Knust asfalt og beton som genbrugsstabil","Beton","Øget genbrug af fortovsfliser","Granit","Generelt","Optimering af udførslen i forhold til direkte og indirekte råstofforbrug","Minimering af spild og affald","Digital lagring og modtagekontrol","Skræddersyet leverancer","Opbevaring, sortering og dokumentering af det affald, som ikke kan undgås","Optimeret intern logistik og fragt","Detaljeringsniveauet af udførelsen","Passende BIM-niveau"]
["Beskrivelse",null,"Bygge- og anlægsmaterialer skal ses som ressourcer. Ressourcekortlægning går ud på at kortlægge materialer, som kan genanvendes direkte på samme projekt, samt lægge en plan for hvordan man håndterer de materialer, som ikke kan genanvendes på pågældende projekt. \nHåndteringen går både på udførelsesmetoder, opbevaring, genanvendelse og bortskaffelse/deponering.. Målet er at det skal være et værktøj til at planlægge og indsamle data om genanvendelse.","Selektiv opgravning kan være et vigtigt redskab til at sikre, at jord inddeles efter klasse og kvalitet. En effektiv inddeling og opbevaring af opgravede materialer er nødvendig for at reducere råstofforbruget. For at planlægge Selektiv opgravning, skal der være et passende kendskab til de materialer, som skal opgraves. Det passende kendskab vil traditionelt sikres ved passende forundersøgelser, dette kan fx gøres i forbindelse med en Ressourcekortlægning.",null,"Opgravet jord skal opbevares og behandles i henhold til muligheden for at skabe størst værdi for bygherren, både i forhold til ressourceforbrug og økonomi","Kalkstabilisering er en teknik, der anvendes til at forbedre jordens egenskaber og stabilisere den til brug i anlægsprojekter. Kalkstabilisering har været brugt i mange år, og der findes gængse standarder på området, fx har vejdirektoratet en vejregel på området.","Når materialer opgraves, er det i flest tilfælde tilsvarende materialer, som ligger umiddelbart rundt om udgravningen. Det betyder, at ved gunstig opbevaring og håndtering, at det i mange tilfælde vil kunne genindbygges.\n\nI mange tilfælde kan der argumenteres imod de høje krav til indbygningsmaterialer til reetablering efter opgravning. Krav om fx nye eller endda jomfruelige materialer vil være i konflikt med de fleste bygherres behov for at reducere råstofforbruget. Vurderingen af krav til indbygningsmaterialer skal vurderes i forhold til det enkelte projekt. En af mulighederne for, at omgås krav om fx jomfruelige materialer til indbygning, er at have en tidlig dialog med de myndigheder, som skal overtage anlægget.","Mange arbejder i anlægsprojekter er udfordret i vinteren. Det skyldes både kulde og frost, vand og sne og reduceret dagslys, som alt i alt ofte resulterer i mindre produktivitet og at opgravede materialer bliver umedgørlige.",null,"Bygherrer kan opleve, at projekter kan genbruge eller genanvende i forskellig grad afhængig af fx en kommunegrænse eller endda internt i kommunen. Det betyder, at et forsyningsselskab kan fx kan få tilladelse til at anvende nedknust asfalt og beton som ubunden bærelag under befæstede arealer i en del af et projekt, med afslag i en anden del af det samme projekt, blot fordi projektet har krydset en kommunegrænse. Det fremhævede eksempel er ikke enkeltstående og bunder ikke i miljøhensyn, men i forskellige syn på genbrug, genanvendelse og nyttiggørelse. \nNår bygherrer oplever sådan, eller anden potentielt uhensigtsmæssig myndighedsbehandling, kan det være en hæmsko for reducering af råstofforbruget. Tidlig dialog med relevante myndigheder som vejmyndigheden og miljømyndigheden er afgørende for at sikre et smidigt projektforløb. Ved at engagere myndighederne fra starten kan eventuelle udfordringer, restriktioner og krav identificeres og tages højde for i projektets indledende faser. Dette ikke kun reducerer risikoen for forsinkelser og uforudsete komplikationer, men fremmer også et samarbejdende forhold mellem alle involverede parter. Det styrker også projektets integritet ved at sikre, at det opfylder alle reguleringskrav og beskytter både det naturlige miljø og samfundets interesser.",null,null,"Gammel slidlag kan blive til ny slidlag og gammel bunden bærelag kan blive til ny asfalt, hvis det affræses eller opbrydes i lag og opbevares hensigtsmæssigt.\n\nLæs eventuelt mere på Teknologisk.dk under projektet 'Cirkulær asfaltproduktion i Danmark'.",null,"KAS (knust asfalt) , KAB (knust asfalt-beton)  og KBT (Knust beton og tegl) er velkendte materialer. I visse tilfælde kan det give mening, at anvende fremfor jomfruelige grusgravsmaterialer.\n\n",null,"Hvis fortovsfliser kan genbruges, så bør det prioriteres.\n",null,"Genbrug på projekt eller via depot",null,null,"Modtagekontrol sikrer at materialer er i tilstrækkelig kvantitet og kvalitet, således der ikke kommer ubehagelige overraskelser.\nDigital lagring sikrer at dokumentation og data for materialerne er tilgængelige.","Hvis det i projektet er klart defineret, hvad og hvor meget, der skal anvendes, kan en entreprenør i højere grad sikre at der ikke opstår spild. \nBlandt andet kan materialer som gips og beton være relevante.","For at sikre bæredygtig affaldssortering skal vi stille høje krav. ","Formålet med initiativet er reducere forbruget af brændstof og dermed CO2-udledning ved at optimere leverancer og logistik til og på byggepladsen.\nVed bestilling af varer skal der fokuseres på, at levering sker i hele læs, og at lastbilerne kører med den maksimale vægt, så antallet af kørsler reduceres mest muligt.\nDette vægtningskrav skal kombineres med ønsket om, at varer leveres direkte ved indbygningsstedet, hvis det er muligt.\nReturlæs (jord væk fra pladsen og grus til pladsen) skal optimeres – ligeledes ud fra et ønske om at reducere antallet af kørsler.\nEventuelt kan tidsplaner drøftes i samarbejde med leverandører, så leverandørerne kan indarbejde tidsplaner fra flere forskellige kunder og dermed udarbejde en kørselsrute med fulde læs, når der skal leveres varer, så kørslen minimeres mest muligt.\nDer kan f.eks. anvendes udvidet brug af 3D-modeller, hvor leverancer er angivet på modellen, så leverandører kan se, præcist hvor tilkørt materiale skal anvendes. Brug ID-numre og tidsplan (4D), så leverandør/byggeledelse kan planlægge leverancer efter dette.",null,"Hvad skal dit projekt kunne ift BIM og digitalisering? Følgende spørgsmål bør stilles\n - Skal modellerne kunne bruges til drift, herunder CO2 -neutral drift?\n - Skal entreprenørmaskiner kunne arbejde efter modeller?\n - Skal der implementeres en grad af digital tvilling i projektet?\n\nVed at analysere og simulere forskellige design- og konstruktionsalternativer kan man identificere optimerede løsninger, der kræver mindre råmaterialer, samtidig med at de opfylder de nødvendige funktionelle og tekniske krav."]
["Behov, som afdækkes",null,"Reducering af råstofforbrug, øget cirkularitet og styrket Asset Management","Håndtering af jord på eller nær byggepladsen. Effektiv inddeling og håndtering af den jord, som bruges på projektet, andre projekter eller skal bortskaffes, fx i forhold til en Materialehåndteringsplan. \nDermed  øge genbrug af jord og reducere råstofforbruget og i mange tilfælde mindske udgifter og klimapåvirkning.",null,"Håndtering af jord på eller nær byggepladsen. Dermed  øge genbrug af jord og reducere råstofforbruget og i mange tilfælde mindske udgifter og klimapåvirkning.","Minimering af transport af potentielt meget store mængder jord, som i nogle tilfælde kan være svære at komme af med og dermed en stor omkostning, som sjældendt er medregnet.\nUndgå indkøb og transport af jomfruelige råstoffer.","Øge genindbygningsmængden af opgravede materialer. Dermed øge genbrug og reducere råstofforbruget og i mange tilfælde reducere udgifter og klimapåvirkning.","Undgå at skulle bortkøre store mængder materialer, som både medfører uforbeholdsmæssigt store udgifter og stort ressourcetræk.",null,"Der er et behov for en ensartet myndighedsbehandling vedrørende genbrug, genanvendelse og nyttiggørelse. Løsningen kan i mange tilfælde være dialog og tidlig inddragelse, men bygherrer har også et behov for et mere ensartet, og måske endda proaktiv, myndighedsbehandling af genbrug, genanvendelse og nyttiggørelse af materialer.",null,null,"Reducering af råstofforbrug igennem krav til leverandører og producenter",null,"Reducering af råstofforbrug igennem krav til leverandører og producenter",null,"Reducering af råstofforbrug igennem krav til leverandører og producenter",null,"Reducering af råstofforbrug igennem krav til leverandører og producenter",null,null," "," "," "," ",null,"Anvend BIM til at simulere forskellige designalternativer. Brug modellerne til at visualisere og optimere designet, så der anvendes færrest mulige råmaterialer."]
["Planlægning",null,"Skal arbejdet udføres af bygherren selv, eller skal opgaven løses af en ekstern?\nHvilke data er tilgængelige for projektområdet, såsom opmålinger, boreprøver, materiale fra tidligere projekter?\n\nHvis man som bygherrer, vælger selv at stå for ressourcekortlægningen, så skal man overveje hvem, som deltager. Det er værdifuldt at have udførelseskompetencer med i en ressourcekortlægning ift praktiske forhold om arbejdsgange og arbejdsmiljø.\n\nHvis man ikke har en Materialehåndteringsplan (se Organisationsværktøjer), kan en Ressourcekortlægning være en god igangsætter for dette.\n\nSe Ydelsesbeskrivelse for Ressourcekortlægning.","Undersøg hvilke data om hvad der er under overfalden der er tilgængelig. Heraf afstem hvilke forundersøgelser der er behov for.\nStart med at identificere områder, der skal opgraves. Udfør indledende forundersøgelser for at få indsigt i jordens kvalitet og klasse. Overvej, hvorvidt data fra Ressourcekortlægningen kan integreres her.\nMan kan med fordel sammentænke det her forslag med både Ressourcekortlægning og Materialehåndteringsplan (under Organisatoriske værktøjer) \n",null,"Identificer potentielle oplagsområder inden for projektets matrikel. Overvej, hvordan den opgravede jord kan lagres for at maksimere dens værdi og genanvendelsespotentiale, samtidig med at økonomiske omkostninger minimeres.","Identificer områder, hvor jorden er ustabil eller har dårlige bæreevneegenskaber, og hvor kalkstabilisering kan være relevant.\nUdfør jordbundsundersøgelser for at vurdere jordens sammensætning og egenskaber.\nEvaluér om kalkstabilisering er den rette metode til at forbedre jordens bæreevne og stabilitet i de pågældende områder.\n","Det er essentielt at kartlægge hvilke materialer, der sandsynligvis vil blive opgravet under projektet, og hvordan de kan genbruges. Dette indebærer at vurdere materialets kvalitet, mængde og egnethed til reetablering.\nSe også tiltaget Ressourcekortlægning\n\nHvis den pågældende myndighed ikke har klare retningslinjer for opbevaring af materialer, kan der findes inspiration i andre myndigheders krav, herunder Københavns Kommunes.","Kan projektet planlægges, således at udvalgte arbejder undgås om vinteren eller kan byggepladsen lukkes henover vinteret?\nVurder projektets tidsramme og muligheden for at undgå vinterarbejde. Overvej de fordele, såsom reducerede driftsomkostninger, mindre forstyrrelse fra vejrliget og øget sikkerhed for arbejdere.",null,"I planlægningsfasen er det essentielt at igangsætte en tidlig dialog med både vej- og miljømyndighederne. At engagere disse myndigheder kan afklare potentielle udfordringer og sikre, at projektets grundlag respekterer lokale reguleringskrav, miljøstandarder og trafikale forhold. Dette bidrager til en mere smidig og forudsigelig projektudvikling. Samtidig giver det mulighed for at forklare om de mål og visioner, som man som bygherre har på det pågældende projekt. \nDer kan ligeledes tidligt drages inspiration fra andre myndigheder, som har arbejdet progressivt med forskellige tiltag, der reducerer forbruget af jomfruelige råstoffer.",null,null,"Identificer potentielle zoner, hvor gammelt slidlag og bærelag findes. Overvej, hvordan disse materialer kan affræses eller opbrydes i lag for at maksimere deres genbrugspotentiale og bevar deres kvalitet.",null,"Identificer potentielle områder i projektet, hvor KAS og KAB kan anvendes som erstatning for jomfruelige materialer. Analyser de miljømæssige og økonomiske fordele ved at tage denne tilgang. Sørg for at det er en del af en projektbeskrivelse eller et anlægsprogram.\nSørg for dialog med vej- og miljømyndigheder",null,"Start med en vurdering af fortovsflisernes tilstand på projektområdet. Dette vil give en indsigt i, hvilken mængde der potentielt kan genbruges og hvilken forberedelse der kræves for at gøre dem klar til genbrug.\nSamtænk gerne med tiltaget Ressourcekortlægning",null,"Del af projektbeskrivelsen. \nOpmærksomhedspunkt ved Ressourcekortlægning",null,null,"Start med at identificere hvilke materialer der kræver modtagekontrol, og hvordan denne kontrol skal dokumenteres. Vælg den digitale platform eller værktøj, der skal bruges til opbevaring af disse data.\nAlternativt kan man lade det være op til entreprenøren, ved at have et krav til at denne arbejder med digital modtagekontrol.","Identificering og specificering af de nødvendige materialer til projektet. Dette indebærer en detaljeret gennemgang af projektets krav og specifikationer for at sikre, at de rigtige materialer bliver valgt.","Inden byggeprojektet påbegyndes, bør der udarbejdes en affaldsplan. Denne plan identificerer og beskriver de forskellige typer affald, der forventes at blive genereret under projektet, og fastlægger de nødvendige foranstaltninger til opbevaring, sortering og håndtering af affaldet.","En omhyggelig planlægning og koordinering af logistik og fragt er afgørende. Dette indebærer at identificere de nødvendige materialer, udstyr og ressourcer til projektet samt fastlægge leveringstidspunkter og transportmetoder. En tidsplan og logistikplan bør udarbejdes, der tager højde for forskellige faktorer som vejrforhold, trafik, adgangsrestriktioner og byggepladsens indretning.",null,"Definer projektets behov og mål i forhold til BIM. Stil de nødvendige spørgsmål om modellernes brug i drift, entreprenørmaskiners behov og muligheden for en digital tvilling. Beslut hvilket BIM-niveau, der er mest hensigtsmæssigt for projektet.\nHvad er der af eksisterende opmåling eller anden data om projektområdet?"]
["Rådgiverudbud",null,"Man kan bede rådgiver stå for eller bidrage til ressourcekortlægningen.\nHvis ressourcekortlægning er udført, indskrives i ATR at rådgiver gennemgår og løbende ajourfører.","Beskriv ønsket i rådgiverudbuddet. Eventuelt på baggrund af opgave fra rådgiver eller ydelsesbeskrivelse. Da selektiv opgravning ikke er en kendt ydelse eller leverance, vil det være svært at bede om referencer herpå. Men man kan bede rådgiveren beskrive, hvordan de vil sørge for at lave et projekt, der sikrer at de forskellige materialer bliver håndteret bedst i henhold til deres kvalitet.\nTilgængelige data synliggøres\nØnskede forundersøgelser beskrives.",null,"Vælg rådgivere med viden om korrekt jordhåndtering og oplagring. De kan rådgive om, hvordan jorden bedst opbevares for at beskytte dens kvalitet og værdi.","Beskriv kalkstabilisering som et potentielt ønske i projektet.\nSøg rådgivere med erfaring inden for kalkstabilisering. Deres viden kan guide projektet gennem de tekniske aspekter af stabiliseringen, herunder doseringskrav, blandingsmetoder og testprocedurer.\n","Resultat fra planlægning beskrives i rådgiverudbud. Alternativt bedes rådgiver levere en ydelse herom","Fremgå af tidsplan eller som ønske til rådgiverens projektering. Husk at medtag særlige ønsker til midlertidige løsninger, hvis behov herfor. Søg eventuelt rådgivere med erfaring i årstidsplanlægning og de specifikke udfordringer, vinteren kan præsentere for dit projekttype.",null,"Overvej hvem, som håndterer opgaver omkring myndighedsinddragelse. Beskriv hvem, hvad og hvornår i ATR.\n\nVed udvælgelse af rådgivere bør man vælge dem med stærke kompetencer inden for myndighedsdialog. En rådgiver med erfaring i at arbejde sammen med myndigheder om netop jeres ønskede tiltag kan effektivt formidle projektets intentioner og sikre en forståelse for myndighedernes krav og forventninger.",null,null,"I beskrivelsen og ATR indføres tekst om krav/ønske om anvendelse af ønske/hensigt.\n\nOvervej at vælge rådgiver, der har ekspertise inden for selektiv affræsning og opbrydning. Deres viden vil være vigtig for at sikre, at processen udføres korrekt og effektivt.\n",null,"Sikr dig, at de rådgivere, der udbydes, har erfaring med brugen af KAS og KAB i anlægsprojekter. Deres viden kan være vigtig for at sikre den rigtige anvendelse og kvalitetssikring af materialerne. Arbejdet med KAS og KAB er dog i høj grad standardiseret, derfor bør alle rådgivere kunne håndtere det. Se eventuelt VDs eller KKs bestemmelser om KAS og KAB.\n",null,"Sørg for, at potentielle rådgivere har viden om og erfaring med genbrug af fortovsfliser, og at de kan rådgive om de bedste metoder til dette.\n\n",null,"I beskrivelsen og ATR indføres tekst om krav/ønske om anvendelse af ønske/hensigt.\n\n",null,null," ","I beskrivelsen og ATR indføres tekst om krav/ønske om anvendelse af ønske/hensigt.\n\n\n","I beskrivelsen og ATR indføres tekst om krav/ønske om anvendelse af ønske/hensigt.\n\n\n","I beskrivelsen og ATR indføres tekst om krav/ønske om anvendelse af ønske/hensigt.\n\n\n",null,"Sørg for, at de rådgivende ingeniører og arkitekter har kompetencer inden for det valgte BIM-niveau og kan opfylde de fastsatte krav.\n\n\n"]
["Forslagsfase",null,"Udarbejd en strategisk plan for, hvordan materialerne vil blive håndteret, herunder sortering, opbevaring, genanvendelse, og deponering. Overvej også, hvordan uønskede materialer skal bortskaffes på en miljøvenlig måde.\nSe gerne tiltaget \"Materialehåndteringsplan\" under Organisatoriske værktøjer","Udarbejd en plan for, hvordan selektiv opgravning skal udføres, og hvordan jorden efterfølgende skal opbevares baseret på dens klasse og kvalitet. Integrer planen med ressourcekortlægning, hvis relevant.",null,"Udvikl en detaljeret plan for oplagring af jorden på det valgte område. Dette skal inkludere tiltag for at beskytte jorden mod erosion, kontaminering og vejrforhold.","Designfasen skal inkludere specifikke detaljer om, hvordan kalkstabiliseringen vil blive udført. Dette omfatter valg af materialer, teknikker og maskiner, samt identifikation af mulige udfordringer i terrænet.","Gennemgang af rådgivers forslag eller rådgivers indarbejdelse af bygherres oplæg.\nVælg rådgivere med erfaring i bæredygtige anlægsprojekter, og som forstår vigtigheden af at genbruge opgravede materialer. De vil kunne rådgive om de bedste metoder og teknikker til dette.\nHvis rådgiveren ikke er vant til at arbejde med direkte genbrug af opgravede materialer, kan det give store udfordringer.","Design en plan, der maksimerer effektiviteten i de varmere måneder og minimerer behovet for at arbejde under vanskelige vinterforhold.",null,"Når de første konkrete forslag udarbejdes, bør disse drøftes med de relevante myndigheder. En tæt dialog på dette stadie kan hjælpe med at tilpasse forslagene til myndighedernes forventninger og samtidig identificere mulige udfordringer i god tid.",null,null,"Udvikl en detaljeret plan for, hvordan affræsning og opbrydning skal udføres. Dette skal inkludere opbevaringsmetoder for de adskilte materialer og beskyttelsestiltag.",null,"Ingen aktion - tiltaget er i høj grad standardiseret.",null,"Design en plan for, hvordan de genbrugelige fortovsfliser skal indsamles, opbevares, og genlægges i projektet. Hvert skridt skal tage hensyn til flisernes kvalitet og holdbarhed.",null,"Ingen aktion",null,null," ","Opfølgning.\nEr der mulighed for, at tilvælge skræddersyede produkter fremfor standard størrelser?\n"," "," ",null,"Anvend BIM til at simulere forskellige designalternativer. Brug modellerne til at visualisere og optimere designet, så der anvendes færrest mulige råmaterialer.\nRådgiver producerer præcise mængdeudtræk og materialelister baseret på den virtuelle model. Dette gør det muligt at bestille nøjagtigt den mængde materialer, der er behov for til anlægsprojektet, og undgå overbestilling eller spild. Ved at minimere overskydende materialer reduceres råstofforbruget."]
["Udbudsprojekt",null,"Udbudsdokumenter bør klart specificere forventningerne til håndtering af materialer. Dette inkluderer krav til ressourcekortlægning, genanvendelsesstrategier og bortskaffelsesprocedurer.","Inkluder specifikationer for forundersøgelser og krav til selektiv opgravning. Klargør også, hvordan jord skal klassificeres og opbevares.\n",null,"Inkluder krav og specifikationer for, hvordan den opgravede jord skal opbevares i udbudsdokumenterne. Vær specifik omkring forventningerne til oplagring og beskyttelse af jorden.","Udbudsmaterialet skal klart beskrive kravene og forventningerne til kalkstabiliseringen. Dette vil hjælpe potentielle entreprenører med at forstå projektets omfang og sikre, at de byder med de korrekte specifikationer i tankerne.\nSpecificér kravene til stabiliseringen, herunder mængden af kalk og eventuelle andre tilsætningsstoffer.\n","Designfasen bør indeholde en strategi for opbevaring, behandling og genbrug af opgravede materialer. Dette kan inkludere forslag til midlertidige lagringsområder og procedurer for sortering og behandling.","Klargør i udbudsmaterialet, at arbejdet skal struktureres omkring en årstidsplan, der tager hensyn til vinterpausen. Dette vil guide potentielle entreprenører i deres tilbudsgivning.",null,"Ved udarbejdelse af udbudsmaterialet er det vigtigt at inkorporere feedback og krav fra myndighederne, så eventuelle bydere er fuldt informeret om projektets rammer. Dette reducerer risikoen for misforståelser og komplikationer i senere faser.",null,null,"Inkluder krav og specifikationer for selektiv affræsning og opbrydning i udbudsdokumenterne. Dette skal sikre, at de genanvendelige materialer håndteres korrekt.",null,"Rådgiver finder mængderne og indskriver i TBL",null,"Rådgiver finder mængderne og indskriver i TBL. SAB beskriver arbejdsgangene. Inkluder klare specifikationer for genbrug af fortovsfliser i udbudsdokumenterne. Dette sikrer, at entreprenører forstår og kan opfylde disse forventninger.",null,"I TBL og TAG anføres at det køres til depot. \nI SAB anføres at det leveres og hentes fra depot.",null,null," ","Opfølgning.\nEr der mulighed for, at tilvælge skræddersyede produkter fremfor standard størrelser?\n","Der bør etableres dedikerede områder til opbevaring af affald på byggepladsen. Disse områder skal være tilstrækkeligt dimensionerede og udstyret med passende affaldscontainere eller beholdere. Affaldet bør placeres sikkert og i overensstemmelse med gældende regler og forordninger for affaldshåndtering.","Byggepladsens adgangsveje og logistikområder skal planlægges og organiseres for at lette den indgående og udgående trafik af materialer og udstyr. Det kan være nødvendigt at etablere midlertidige kørselsveje, losningsområder og lagringspladser for at optimere logistikken og minimere forsinkelser.\n\nDet er vigtigt at byggeleder inddrages i planlægningen af byggepladsen og udførelsestidsplanen",null,"Rådgiver integrerer informationer om materialers egenskaber, levetid og potentiale for genanvendelse i BIM-modellen så der let identificere materialer, der kan genbruges eller genanvendes i andre projekter. \n\nDette sætter et krav til bygherrens Asset Management eller blot lagring af digital viden. Ved indførelse af materialepas, eller lignende, vil dette være et fordel.\n"]
["Entreprenørudbud",null,"Eventuelt prioriter entreprenører med erfaring i genbrug og genanvendelse af specifikke arbejder. Sikr at materialehåndteringen er velbeskrevet i udbuddet.","Afspejles i alle udbudsdokumenter, særligt TBL, TAG, SAB og tegninger. Der skal fremgå detaljerede planer og snit af forholdende.\n\nAlternativt kan man bede entreprenøren om at komme med et oplæg, hvilket vil kræve tid og samarbejde.",null,"Afspejles i alle udbudsdokumenter, særligt TBL, TAG, SAB og tegninger.\n\nAlternativt kan man bede entreprenøren om at komme med et oplæg, hvilket vil kræve tid og samarbejde. \nVælg entreprenører, der har erfaring med korrekt jordoplagring. Deres ekspertise vil være afgørende for at beskytte jordens værdi.","Afspejles i alle udbudsdokumenter, særligt TBL, TAG, SAB og tegninger.\n\nAlternativt kan man bede entreprenøren om at komme med et oplæg, hvilket vil kræve tid og samarbejde.\n\nDet kan være nødvendigt, at entreprenøren viser erfaring med, at arbejde med kalkstabilisering. Deres tekniske kompetence og tidligere erfaring kan være afgørende for projektets succes.","Afspejles i alle udbudsdokumenter, særligt TBL, TAG, SAB og tegninger.\n\nAlternativt kan man bede entreprenøren om at komme med et oplæg, hvilket vil kræve tid og samarbejde.\n\nHvis det stilles som krav, skal udbudsdokumenter klart angive kravene til genbrug af opgravede materialer. Dette sikrer, at entreprenører byder med dette fokus i tankerne og er forberedte på genbrug.\n\nVed valg af entreprenør, prioriter dem med erfaring med genbrug af materialer. Deres ekspertise kan sikre en effektiv gennemførelse.","Eventuel prioriter entreprenører, der har erfaring med at arbejde inden for en stram tidsramme, og som forstår betydningen af årstidsplanlægning. Man kan overveje bonusordning, men det er ikke et 'must'.",null,"Ved modtagelse af bud fra entreprenører bør man sikre, at de har en god forståelse for myndighedskravene. Dette kan sikre en mere effektiv udførelsesfase og mindre risiko for konflikter.",null,null,"I TBL skrives at bærelag og slidlag affræses og opbevares hver for sig. Desuden leveres slidlag til slidlagsgenbrug og bærelag leveres enten til genbrugsstabil eller genbrugsasfalt hos asfaltmodtager.\nFor at sikre den største grad af cirkulær ressourceudnyttelse, bør fræsning ske ved normal (grov) fræsevalseopsætning.",null,"Rådgiver indfører krav i TBL, TAG og SAB. Det kan overvejes om der skal udvælges entreprenører med erfaringer med KAS og KAB.",null,"Rådgiver indfører krav i TBL, TAG og SAB.\nOvervej om entreprenøren skal vedlægge en beskrivelse af deres ide til genbrug af fortavsfliser, på baggrund af det projekterede.\nI entreprenørudbud kan der gives fratræk pr. genbrugte fortovsflise. Fx passende med 50% af prisen på en leveret.",null,"Rådgiver indfører krav i TBL, TAG og SAB",null,null,"Bed entreprenøren beskrive, hvordan de vil arbejde med digital modtagekontrol og lagring.\nAlternativt kan der stilles krav til at al dokumentation skal ske digitalt, enten via forudbestemt portal eller mail - indscanning skal undgås."," ","1) indfør som krav i særligt SAB at, eller 2) Bed entreprenøren beskrive hvordan denne vil sikre at: Affaldet sorteres korrekt for at muliggøre genanvendelse og korrekt bortskaffelse. Dette kan omfatte at opstille forskellige beholdere eller containere til specifikke affaldstyper, såsom træ, metal, plast, byggematerialer osv. Arbejdstagerne skal være opmærksomme på de korrekte sorteringsprocedurer og uddannes om affaldshåndtering.","Afspejles i planer i udbud.\nUdpensl hvad entreprenøren skal vise i sin tidsplan.",null,"Entreprenøren skal have muligheden for at styre arbejder efter modeller. "]
["Udførelsesprojekt / projektgennemgangsmøde",null,"Diskuter ressourcekortlægningsplanen i detaljer. Alle parter skal være informeret om, hvordan materialer skal sorteres, opbevares og genanvendes.","Gennemgå i detaljer planen for selektiv opgravning og forundersøgelser. Sikre, at alle parter forstår kravene og procedurerne.",null,"Gennemgå oplagringsplanen i detaljer. Sikre, at alle parter forstår, hvordan og hvor jorden skal opbevares, og hvilke beskyttelsestiltag der skal implementeres","Inden arbejdet begynder, bør alle aspekter af kalkstabilisering gennemgås detaljeret. Dette sikrer, at alle parter forstår processen og er klar over deres roller og ansvar.","Gennemgå planen for opgravning og genbrug af materialer, så alle er på samme side. Diskuter opbevaring, sortering og behandling for at sikre optimal genbrug.","Gennemgå årstidsplanen detaljeret, og sikre at alle aspekter af projektets timing er klare for alle involverede parter.",null,"Inden udførelsen påbegyndes, er det afgørende at gennemgå alle aspekter af projektet med myndighederne. Dette kan afklare eventuelle sidste-minuts spørgsmål og sikre, at projektet er på rette spor.",null,null,"Arbejdsmetoder og materialevalg gennemgåes med entreprenør og optimeringer afsøges.\n\nGennemgå planerne for affræsning og opbrydning i detaljer. Sikre, at alle parter er klare over, hvordan processen skal udføres, og hvilke materialer der skal genanvendes.",null,"Gennemgå planerne for brugen af KAS og KAB i detaljer. Sikre, at alle parter er på samme side, og at der er en fælles forståelse for, hvordan materialerne skal håndteres, særligt hvis entreprenøren ikke har arbejdet med KAS eller KAB før. ",null,"Gennemgå de detaljerede planer for genbrug af fortovsfliser, sikre fælles forståelse blandt alle parter, og juster om nødvendigt.",null,"Arbejdsmetoder og materialevalg gennemgåes med entreprenør og optimeringer afsøges.",null,null,"Arbejdsmetoder og processer gennemgåes med entreprenør og optimeringer afsøges.","Kan entreprenøren optimere? (husk at skræddersyede produkter kan komme med en meromkostning)\nKlar og præcis kommunikation mellem bygherren, entreprenører og leverandører er afgørende. Alle parter skal være enige om specifikationer, mængder, kvalitetsstandarder og leveringstidspunkter for materialerne. Dette sikrer, at de rigtige materialer leveres på det rigtige tidspunkt."," ","Det er vigtigt at entreprenørens bidrag kan implementeres, således der skabes en fælles forståelse for logistik og tidsplan.",null,"Gennemgå BIM-modellen med alle parter for at sikre forståelse og konsensus omkring designet og konstruktionen. Afklar eventuelle uoverensstemmelser."]
["Udførelse",null,"Under byggeprocessen skal ressourcekortlægningens procedurer nøje følges. Dette vil sikre, at materialerne genanvendes korrekt og effektivt, og at affald minimeres.\n\nByggeledelse og fagtilsyn gennemgår arbejdet og dokumentation.","Under opgravningen, følg den udstukne plan nøje. Jord skal sorteres omhyggeligt baseret på dens klasse og kvalitet, og derefter opbevares korrekt. Billededokumentation, leveringsdokumentation, opmåling og tilsyn ",null,"Implementer oplagringsplanen, når jorden opgraves. Følg nøje de fastsatte procedurer for at sikre jordens integritet og værdi.\n\nBillededokumentation og tilsyn af opbevaring.\nMængder leveres som digitale data.","Under selve udførelsen skal kalkstabiliseringen overvåges nøje for at sikre korrekt anvendelse og blandingsforhold. Regelmæssige tests kan være nødvendige for at bekræfte jordens styrke og stabilitet gennem processen.","Under byggeprocessen, sørg for korrekt opbevaring og sortering af de opgravede materialer. Overvågning er nøglen her, da det sikrer, at materialerne forbliver i en tilstand, der er egnet til reetablering.\n\nBillededokumentation og tilsyn af opbevaring.\nMængder leveres som digitale data.","Tilsyn og opfølgning på eventuelle midlertidige løsninger, som påvirker arealer, materialer og trafik.\nImplementer arbejdsplanen, og sørg for at alle milepæle nås rettidigt for at kunne lukke byggepladsen hen over vinteren, som planlagt.",null,"Under udførelsen er det vigtigt at opretholde en løbende dialog med myndighederne, så eventuelle udfordringer kan adresseres hurtigt. Dette kan være med til at undgå unødige forsinkelser og ekstra omkostninger.",null,null,"Byggeledelse og fagtilsyn gennemgår arbejdet og dokumentation. Overvåg processen nøje for at sikre, at materialerne opbevares og beskyttes korrekt.",null,"Byggeleder sørger inden start af udførsel at lave en bestilling på genbrugsstabil ",null,"Genbrug fortovsfliserne som planlagt, samtidig med at man sørger for korrekt håndtering, opbevaring, og genlægning for at opnå det bedst mulige resultat.",null,"Byggeledelse og fagtilsyn gennemgår arbejdet og dokumentation.",null,null,"Byggeledelse og fagtilsyn gennemgår arbejdet og dokumentation."," ","Det er vigtigt at opretholde en nøjagtig dokumentation af affaldshåndteringen på byggepladsen. Dette kan omfatte affaldsregistrering, herunder mængder, affaldstyper og destinationen for bortskaffelse eller genanvendelse. Dokumentationen kan være påkrævet af myndighederne eller bruges som en intern kontrolmekanisme.\n\nKontinuerlig overvågning og opfølgning af affaldshåndteringen er vigtig for at sikre, at planen og procedurerne følges korrekt. Byggepladsens personale og ansvarlige parter bør være opmærksomme på og rapportere eventuelle problemer eller afvigelser fra planen, så der kan træffes passende foranstaltninger.","Byggeledelse og fagtilsyn gennemgår arbejdet og dokumentation. \nFor at kunne planlægge arbejdet ordentligt, er det vigtigt at projekteringen er afsluttet og låst.",null,"Brug BIM-modellen som en central reference gennem hele udførelsen. Sikr, at ændringer  afspejles i modellen.\nByggeledelse og fagtilsyn gennemgår arbejdet og dokumentation. "]
["Afslutning",null,"Når byggearbejdet er færdigt, gennemfør en evaluering af ressourcekortlægningen. Dette vil afdække, hvor effektivt materialerne blev genanvendt, og om yderligere forbedringer kan foretages i fremtidige projekter.","Efter opgravningen, gennemgå og evaluer processen. Overvej, om der var nogen uforudsete udfordringer, og hvordan de blev håndteret.",null,"Efter projektets afslutning, vurder effektiviteten af jordoplagringsstrategien. Overvej, om der er lektioner, der kan læres for fremtidige projekter.","Når kalkstabiliseringen er færdig, bør en omfattende kvalitetskontrol udføres. Dette vil bekræfte, at jorden nu har de ønskede egenskaber, og at stabiliseringen har været en succes.","Efter reetablering med de opgravede materialer, gennemfør en kvalitetskontrol for at sikre, at alt er udført korrekt og at genbrugsmaterialerne fungerer som de skal.","Efter afslutning af den aktive byggesæson, sikre en ordentlig nedlukning af byggepladsen for at beskytte materialer, udstyr og allerede færdiggjort arbejde mod vinterelementerne.",null,"Ved projektets afslutning bør der foretages en omhyggelig gennemgang med myndighederne for at sikre, at alle krav og forventninger er opfyldt. Dette kan også bidrage til en lettere godkendelsesproces.",null,null,"Når projektet er færdigt, vurder effektiviteten af affræsnings- og opbrydningsstrategien. Er der erfaringer, der kan tages med til fremtidige projekter?",null," ",null,"Efter projektets afslutning, vurder kvaliteten og effektiviteten af genbrugte fliser i forhold til nyindkøbte.",null," ",null,null," "," "," "," ",null,"Opdater BIM-modellen med den endelige konstruktion. Dette vil være værdifuldt for drift og vedligeholdelse samt eventuelle fremtidige renoveringer.\nModtaget data skal håndteres hensigtsmæssigt for fremtidig brug"]
["Evaluering",null,"Hvad kan vi gøre bedre?\nEvaluering på samarbejde med rådgiver og entreprenør er vigtig.\nEffekt på pris er vigtig.\nMuligheder for optimeringer afsøges til videre brug.","Reflekter over processen med forundersøgelser og selektiv opgravning. Identificer hvad der fungerede godt og potentielle områder til forbedring for fremtidige projekter ",null,"Reflekter over processen med at opbevare jorden på matriklen. Hvad fungerede godt? Hvor kan forbedringer foretages? Feedbacken vil være værdifuld for fremtidige projekter.","Efter projektets afslutning er det vigtigt at reflektere over, hvad der gik godt, og hvor der kunne være forbedringer. Dette kan informere fremtidige projekter og hjælpe med at optimere processen.","Vurder processen og effektiviteten af genbrug. Dette kan bidrage med værdifulde indsigter til fremtidige projekter, som ønsker at inkorporere lignende bæredygtige praksisser. ","Reflekter over effektiviteten af årstidsplanlægningen. Sammenlign omkostningsbesparelser, effektivitet og eventuelle udfordringer, der opstod.",null,"Efter projektets afslutning er det værdifuldt at evaluere samarbejdet med myndighederne. Læringer herfra kan anvendes i fremtidige projekter for at forbedre processen",null,null,"Reflekter over hele processen. Hvad fungerede godt? Hvor kan forbedringer foretages? Denne feedback vil være værdifuld for fremtidige tiltag.",null," ",null,"Reflekter over processen. Hvad fungerede godt? Hvor kan der laves forbedringer for fremtidige projekter?",null," ",null,null," "," "," ","Hvad kan vi gøre bedre?\nEvaluering på samarbejde med rådgiver og entreprenør er vigtig.\nEffekt på pris er vigtig.\nMuligheder for optimeringer afsøges til videre brug.",null," "]
["Drift",null," "," ",null," ","I driftsfasen er det vigtigt at monitorere de kalkstabiliserede områder for at sikre, at de fortsat præsterer som forventet. Enhver afvigelse eller tegn på degradering bør adresseres hurtigt.","Overvåg de reetablerede områder for at sikre, at genbrugsmaterialerne opfylder deres funktion og forbliver stabile over tid.","Overvågning af byggepladsen gennem vinteren kan være nødvendig, selvom aktiviteten er minimal. Dette sikrer, at alt forbliver intakt og klar til genoptagelse i den efterfølgende byggesæson.",null,"I driftsfasen kan der opstå nye udfordringer, der kræver dialog med myndighederne. En proaktiv tilgang og løbende kommunikation kan hjælpe med at navigere disse udfordringer.",null,null," ",null," ",null,"Hold øje med performance og holdbarhed af de genbrugte fortovsfliser, især i forhold til nyindkøbte. Dette kan hjælpe med fremtidige beslutninger om genbrug.",null," ",null,null," "," "," "," ",null," "]
["1 og 5 års eftersyn",null," "," ",null," ","Eftersynene giver mulighed for at vurdere kalkstabiliseringens langsigtede effektivitet. Eventuelle tegn på ustabilitet eller forringelse kan identificeres og rettes","Eftersynene er en mulighed for at kontrollere de reetablerede områders tilstand, og om de opgravede materialer stadig opfylder deres funktion effektivt."," ",null,"Eftersynene er chancer for at vurdere, hvordan infrastrukturen performer og identificere eventuelle problemer. Inkludering af myndighederne i disse vurderinger kan sikre, at løsningerne eller tiltagene fungerer efter hensigten",null,null," ",null," ",null,"Undersøg de genbrugte fortovsflisers tilstand og sammenlign med forventet levetid og kvalitet",null," ",null,null," "," "," "," ",null," "]
["CO2-reduktion",null,"Genanvendelse af materialer via ressourcekortlægning kan have en positiv indvirkning på projektets CO2-fodaftryk ved at reducere behovet for nye materialer og minimere affald. En vurdering af denne besparelse bør foretages for at kvantificere projektets miljømæssige fordele.","Ved at genanvende jorden fra projektstedet og ved at undgå transport og køb af ny jord, kan CO2-udslippet reduceres markant. Evaluér og dokumentér disse besparelser for at demonstrere projektets miljøfordele.",null,"Ved at opbevare jorden lokalt, reduceres behovet for transport, hvilket kan medføre en markant reduktion i CO2-udslippet. Evaluér og dokumentér disse besparelser","Kalkstabilisering kan bidrage til projektets samlede CO2-aftryk. En vurdering af dette aftryk, herunder transport af materialer og brug af maskiner, bør foretages for at identificere mulige forbedringsområder.","Dette kan føre til store CO2-besparelser. CO2-beregning af antal sparede kørte km kan beregnes. Kan i tilfælde erstatte CO2 udledning fra jomfruelige materialer."," ",null," ",null,null,"Genbrug af gammelt slidlag og bærelag reducerer behovet for nye råmaterialer, hvilket kan medføre en markant reduktion i CO2-udslippet fra materialeproduktion. Evaluér og dokumentér disse besparelser ",null," ",null,"CO2-beregning af antal sparede kørte km kan beregnes. Kan i tilfælde erstatte CO2 udledning fra nye fortovsfliser.",null," ",null,null," "," "," "," ",null," "]

{"sheet":"DATA_STORT PROJEKT","index":9,"n_rows":15,"n_cols":31,"rows_kept":15,"cut":false,"hidden":true,"merged":[]}
["Kolonne1","Kolonne2","Kolonne3","Kolonne4","Kolonne5","Kolonne6","Kolonne7","Kolonne8","Kolonne9","Kolonne10","Kolonne11","Kolonne12","Kolonne13","Kolonne14","Kolonne15","Kolonne16","Kolonne17","Kolonne18","Kolonne19","Kolonne20","Kolonne21","Kolonne22","Kolonne23","Kolonne24","Kolonne25","Kolonne26","Kolonne27","Kolonne28","Kolonne29","Kolonne30","Kolonne31"]
["Anbefaling og initiativer","Tidlige tiltag","Ressourcekortlægning ","Materialehåndteringsplan","Materialeplads eller Jorddepot","Forundersøgelser og Selektiv opgravning","Årstidsplanlægning","Håndtering af jord på eller nær byggepladsen","Reetabler, som udgangspunkt, med opgravede materialer ","Jordstabilisering","Materialer","Asfalt","Højere genbrugsandel i asfalt","Koldblandet asfalt","Selektiv affræsning / opbrydning","Grus","Anvendelse af forbrændingsslagge til bundsikring","Anvendelse af forbrændingsslagge til stabilgrus","Knust asfalt og beton som genbrugsstabil","Beton","Generelt om krav til betonkonstruktioner","Granit","Generelt","Optimering af udførslen i forhold til direkte og indirekte råstofforbrug","Minimering af spild og affald","Digital lagring og modtagekontrol","Skræddersyet leverancer","Opbevaring, sortering og dokumentering af det affald, som ikke kan undgås","Optimeret intern logistik og fragt","Detaljeringsniveauet af udførelsen","Passende BIM-niveau"]
["Beskrivelse",null,"Bygge- og anlægsmaterialer skal ses som ressourcer. Ressourcekortlægning går ud på at kortlægge materialer, som kan genanvendes direkte på samme projekt, samt lægge en plan for hvordan man håndterer de materialer, som ikke kan genanvendes på pågældende projekt. \nHåndteringen går både på udførelsesmetoder, opbevaring, genanvendelse og bortskaffelse/deponering.. Målet er at det skal være et værktøj til at planlægge og indsamle data om genanvendelse.\n\nI mange tilfælde kan man med fordel udarbejde en Materialehåndteringsplan sammen med en Ressourcekortlægning.","En Materialehåndteringsplan definerer, hvordan opgravede materialer skal håndteres, således at råstofforbruget kan reduceres og asset management kan understøttes. Dermed kan en optimal håndtering af materialer sikres i et stort projekt.\n\nKan med fordel integreres med den generele styring af, og den digitale del af, Asset Management. \n\nI mange tilfælde kan man med fordel udarbejde en Materialehåndteringsplan sammen med en Ressourcekortlægning.\n\n\n","En materialeplads er et mellemdepot, som kan være permanent eller midlertidig (projektjord). På en materialeplads kan anvendes til kartering, sortering og knusning af jord, grus, sand, beton og asfalt inden endelig anvendelse. \n\nEn materialeplads giver gode data, potentielle økonomiske besparelser og, i mange tilfælde, en høj grad af cirkulær økonomi. Mulighed for at projektere og planlægge ud fra Asset Management.","Selektiv opgravning kan være et vigtigt redskab til at sikre, at jord inddeles efter klasse og kvalitet. En effektiv inddeling og opbevaring af opgravede materialer er nødvendig for at reducere råstofforbruget. For at planlægge Selektiv opgravning, skal der være et passende kendskab til de materialer, som skal opgraves. Det passende kendskab vil traditionelt sikres ved passende forundersøgelser, dette kan fx gøres i forbindelse med en Ressourcekortlægning.","Mange arbejder i anlægsprojekter er udfordret i vinteren. Det skyldes både kulde og frost, vand og sne og reduceret dagslys, som alt i alt ofte resulterer i mindre produktivitet og at opgravede materialer bliver umedgørlige.",null,"Når materialer opgraves, er det i flest tilfælde tilsvarende materialer, som ligger umiddelbart rundt om udgravningen. Det betyder, at ved gunstig opbevaring og håndtering, at det i mange tilfælde vil kunne genindbygges.\n\nI mange tilfælde kan der argumenteres imod de høje krav til indbygningsmaterialer til reetablering efter opgravning. Krav om fx nye eller endda jomfruelige materialer vil være i konflikt med de fleste bygherres behov for at reducere råstofforbruget. Vurderingen af krav til indbygningsmaterialer skal vurderes i forhold til det enkelte projekt. En af mulighederne for, at omgås krav om fx jomfruelige materialer til indbygning, er at have en tidlig dialog med de myndigheder, som skal overtage anlægget.","Kalkstabilisering er en teknik, der anvendes til at forbedre jordens egenskaber og stabilisere den til brug i anlægsprojekter",null,null,"Asfaltbærelag (GAB) tilsættes minimum 60% genbrugsasfalt\nAlle slidlagstyper (herunder SMA) og bindelag tilsættes 30 % slidlagsgenbrug.\nDet er en nødvendighed at affræse (og opbevare) slidlag og bærelag hver for sig.","Koldblandede asfalt-bærelag (BSM) kan bruges i forbindelse med vedligeholdelsesarbejder, specielt ved vejstrækninger som er meget nedbrudte i form af lands- og tværgående revner og strækninger hvor nedbrydningen er så markant, at en almindelig slidlagsudskiftning ikke fører til en tilfredsstillende levetid, før næste driftsaktivitet.\nPå mindre veje kan koldblandet asfalt benyttes til at skabe et nyt fundament for vejen, hvorpå der afsluttes med et mindre lag varmblandte asfalt.\nPå visse større veje kan det bruges som belægningsfornyelse, hvor der afsluttes med et mindre lag varmblandet asfalt.","Gammel slidlag kan blive til ny slidlag og gammel bunden bærelag kan blive til ny asfalt, hvis det affræses eller opbrydes i lag og opbevares hensigtsmæssigt",null,"Forbrændingsslagge (FS) er et grundigt bearbejdet og kontrolleret restprodukt fra affaldsforbrænding. For nuværende foreskriver VDs udbudsforskrift at det anvendes til og med trafikklasse T4. Forbrændingsslagge er indarbejdet på forsøgsbasis på Nordhavnsvej, der er er en større trafiklasse end T4.","Forbrændingsslagge (FS) er et grundigt bearbejdet og kontrolleret restprodukt fra affaldsforbrænding. Der pågår forsøg, der viser at forbrændingsslagge opfylder krav iht kornkurve for SGll.","KAS (knust asfalt), KAB (knust asfalt-beton) og KBT (Knust beton og tegl) er velkendte materialer. I visse tilfælde kan det give mening, at anvende fremfor jomfruelige grusgravsmaterialer.",null,"At opnå 30% og 50% CO2-reduktion (i hhv. 2025 og 2030 fra baseline 2020) i lighed med regeringens mål om 70% CO2-reduktion i 2030 i henhold til 1990 niveau. På samme måde som regeringen ønsker at markedet og virksomhederne laver tiltag, der kan bidrage til at opnå dette mål, ønsker Københavns Kommune ligeledes at udfordre markedet med krav til materialeleverandører og entreprenører på KKs projekter.\n\nAf betonkonstruktionsprojekter (fx bro og tunnelprojekter) svarer betonen samlede CO2-udledning for op mod 60-70% og her står cement for den altoverskyggende del – helt op til ca. 80 %. Reduktion af CO2-udledning fra cement kan ske ved:\n\n1)\tAnvendelse af cement med mindre CO2-udledning. Dette kan f.eks. opnås ved at substituere dele af cementen med flyveaske og microsilika.\n2)\tBruge mindre cement per m3 beton. Dette kan f.eks. opnås ved at acceptere længere hærdetider for betonkonstruktioner.\n3)\tAnvende mindre beton gennem optimering af tværsnit. \n\nStål til armering står for ca. 10 % af større betonkonstruktionsprojekters samlede CO2-udledning. Reduktion kan ske gennem at stille krav til anvendelse af genbrugsstål og forarbejdning vha. f.eks. grøn strøm.\n\nOverordnede mål kan være at stille krav til LCA, EPDer og optimeret design, herunder BIM-niveau.\n\nKonkrette mål kan være at reducere mængden af beton så meget som muligt i design af både midlertidige (fx sekantpæle) og permanente konstruktioner, eks. slankere konstruktioner eller substitutioner til betonen, brug af mere stål og mindre beton mv.",null,"Genbrug på projekt eller via depot",null,null,"Modtagekontrol sikrer at materialer er i tilstrækkelig kvantitet og kvalitet, således der ikke kommer ubehagelige overraskelser.\nDigital lagring sikrer at dokumentation og data for materialerne er tilgængelige.","Hvis det i projektet er klart defineret, hvad og hvor meget, der skal anvendes, kan en entreprenør i højere grad sikre at der ikke opstår spild. \nBlandt andet kan materialer som gips og beton være relevante.","For at sikre bæredygtig affaldssortering skal vi stille høje krav. ","Formålet med initiativet er reducere forbruget af brændstof og dermed CO2-udledning ved at optimere leverancer og logistik til og på byggepladsen.\nVed bestilling af varer skal der fokuseres på, at levering sker i hele læs, og at lastbilerne kører med den maksimale vægt, så antallet af kørsler reduceres mest muligt.\nDette vægtningskrav skal kombineres med ønsket om, at varer leveres direkte ved indbygningsstedet, hvis det er muligt.\nReturlæs (jord væk fra pladsen og grus til pladsen) skal optimeres – ligeledes ud fra et ønske om at reducere antallet af kørsler.\nEventuelt kan tidsplaner drøftes i samarbejde med leverandører, så leverandørerne kan indarbejde tidsplaner fra flere forskellige kunder og dermed udarbejde en kørselsrute med fulde læs, når der skal leveres varer, så kørslen minimeres mest muligt.\nDer kan f.eks. anvendes udvidet brug af 3D-modeller, hvor leverancer er angivet på modellen, så leverandører kan se, præcist hvor tilkørt materiale skal anvendes. Brug ID-numre og tidsplan (4D), så leverandør/byggeledelse kan planlægge leverancer efter dette.",null,"Hvad skal dit projekt kunne ift BIM og digitalisering? Følgende spørgsmål bør stilles\n - Skal modellerne kunne bruges til drift, herunder CO2 -neutral drift?\n - Skal entreprenørmaskiner kunne arbejde efter modeller?\n - Skal der implementeres en grad af digital tvilling i projektet?"]
["Behov, som afdækkes",null,"Anvende ressourcer smart og potentielt reducere råstofforbruget.\nGenerere mindre transport til og fra byggepladsen.","I mange tilfælde har bygherrerne behov for en plan, som beskriver, hvordan materialer på et stort projekt, håndteres mest effektivt i forhold til reducering af ressourceforbrug og økonomi. \n\nGiver et styrket kendskab til fremtidige materialestrømme. Giver et styrket Asset Management. Giver potentialer for at kunne planlægge og øge genbrug og dermed muligheden for at reducere råstofforbruget.","Når materialer forlader bygherrernes byggepladser, kan det være svært at spore endedestinationerne - Det har bygherrerne i større grad behov for at kende. Både i forhold til rapportering og Asset Management. Det kan styres via mere nøjsom dokumentation eller en øget hjemtagelse af håndteringen ved fx. en Materialeplads eller et Jorddepot.","Håndtering af jord på eller nær byggepladsen. Effektiv inddeling og håndtering af den jord, som bruges på projektet, andre projekter eller skal bortskaffes, fx i forhold til en Materialehåndteringsplan. \nDermed  øge genbrug af jord og reducere råstofforbruget og i mange tilfælde mindske udgifter og klimapåvirkning.","Undgå at skulle bortkøre store mængder materialer, som både medfører uforbeholdsmæssigt store udgifter og stort ressourcetræk.",null,"Øge genindbygningsmængden af opgravede materialer. Dermed øge genbrug og reducere råstofforbruget og i mange tilfælde reducere udgifter og klimapåvirkning.","Øge andelen af genbrugte og genanvendte materialer. Potentielle økonomiske besparelser.",null,null,"Reducering af råstofforbrug igennem krav til leverandører og producenter","Reducering af råstofforbrug igennem krav til leverandører og producenter","Reducering af råstofforbrug igennem krav til leverandører og producenter",null,"Hvad er mulighederne her? Logistik, bæreevne og ledningsføring er vigtige forhold. ","Hvad er mulighederne her? Logistik, bæreevne og ledningsføring er vigtige forhold. ","Hvad er mulighederne her? Logistik, bæreevne og ledningsføring er vigtige forhold. ",null," ",null,"Reducering af råstofforbrug igennem krav til leverandører og producenter",null,null," "," "," "," ",null," "]
["Planlægning",null,"Skal arbejdet udføres af bygherren selv, eller skal opgaven løses af en ekstern?\nHvilke data er tilgængelige for projektområdet, såsom opmålinger, boreprøver, materiale fra tidligere projekter?\n\nHvis man som bygherrer, vælger selv at stå for ressourcekortlægningen, så skal man overveje hvem, som deltager. Det er værdifuldt at have udførelseskompetencer med i en ressourcekortlægning ift praktiske forhold om arbejdsgange og arbejdsmiljø.\n\nHvis man ikke har en Materialehåndteringsplan (se Organisationsværktøjer), kan en Ressourcekortlægning være en god igangsætter for dette.\n\nSe Ydelsesbeskrivelse for Ressourcekortlægning.","Hvilke data er tilgængelig?\nHvilke forundersøgelser skal laves? \nHvor skal lige netop disse materialer bruges?\nEventuel samtænkning med Ressourcekortlægning.","Skal det håndteres af den vindende entreprenør? Skal der indgåes en særskilt aftale herom med en anden privat part?","Hvilke data er tilgængelig?\nHvilke forundersøgelser skal laves? \nEventuel samtænkning med Ressourcekortlægning.","Kan projektet planlægges, således at udvalgte arbejder undgås om vinteren?",null,"Hvilke materialer skal håndteres i projektet? For at kunne stille realistiske krav, skal de rette forundersøgelser eller den rette data indhentes.","Identificer områder, hvor jorden er ustabil eller har dårlige bæreevneegenskaber, og hvor kalkstabilisering kan være relevant.\nUdfør jordbundsundersøgelser for at vurdere jordens sammensætning og egenskaber.\nEvaluér om kalkstabilisering er den rette metode til at forbedre jordens bæreevne og stabilitet i de pågældende områder.",null,null,"Hvilke hindringer er der for at stille høje krav til genbrugsandel i asfalten? Kan man på delstrækninger, forsøge at arbejde med endnu mere ambitiøse krav?\nPå store projekter er der ofte gode muligheder for at tage kalkulerede risici eller gennemtænkt innovation - det skal overvejes at bruges på de mest toneangivende materialer.","Hvilke muligheder er der for at arbejde med koldblandet asfalt?","Hvilke data er tilgængelig?\nHvilke forundersøgelser skal laves? \nEventuel samtænkning med Ressourcekortlægning.",null,"Sørg for at forholde sig til de udfordringer, som er tilstede","Sørg for at forholde sig til de udfordringer, som er tilstede","Sørg for at forholde sig til de udfordringer, som er tilstede",null,"Identificering og specificering af de nødvendige materialer til projektet. Dette indebærer en detaljeret gennemgang af projektets krav og specifikationer for at sikre, at de rigtige materialer bliver valgt.",null,"Del af projektbeskrivelsen. \nOpmærksomhedspunkt ved Ressourcekortlægning",null,null," ","Identificering og specificering af de nødvendige materialer til projektet. Dette indebærer en detaljeret gennemgang af projektets krav og specifikationer for at sikre, at de rigtige materialer bliver valgt."," "," ",null," "]
["Udbudsprojekt",null,"Resultater fra Ressourcekortlægning skal tydeligt fremgå af projektet. Det kan både vises via planer, udbudsdokumenter (SAB, TAG, TBL) og enkeltstående dokumenter.\n\nDet skal overvejes, hvad, der skal ske, med de enekelte materialer (jf Materialehåndteringsplan). Ansvar, økonomi og omfang skal nøje overvejes, hvis materialehåndtering skal udpensles. \nAlternativt kan man overveje at entreprenøren om at komme med bud på materialehåndtering og eventuel opstille evalueringskriterier hertil.\n\n"," \n"," "," ","Tidsplan, udførelsestidsplan, udførelsessekvens, lokale forhold skal undersøges. Målet ift reducering af ressourceforbruget er at minimere jordhåndtering.",null," ","Beskriv kalkstabilisering som en mulig metode eller et krav i udbudsmaterialet.",null,null," "," ","Ssnit og planer skal vise krav til selektiv opbrydning samt eksisterende forhold. Der skal udarbejdes krav til de materialer, som undergår selektiv opgravning / affræsning.",null,"Sørg for at forholde sig til de udfordringer, som er tilstede","Sørg for at forholde sig til de udfordringer, som er tilstede","Sørg for at forholde sig til de udfordringer, som er tilstede",null," ",null,"I udbudsprojekt indføres tekst om krav/ønske om anvendelse af ønske/hensigt.\n\n",null,null," "," "," "," ",null," "]
["Totalentrepriseudbud",null,"Ressourcekortlægningen, og dets resultater, skal tydeligt fremgå af udbudsmaterialet, herunder TBL, TAG og SAB. Det kan give værdi også at have planer og snit, samt enkeltsående dokumenter.\n\nHvis projektet stadiog kan ændre sig i løbet af TE-projektering, skal dette tages højde for. \n\nBeskriv krav til dokumentation og afrapportering","Ønsker fra Materialehåndteringsplan skal tydeligt fremgå af udbudsdokumenterne (TBL, TAG og SAB). Der kan også vedlægges enkeltstående dokumenter.\n\n","Materialehåndteringen skal tydeligt fremgå af udbudsdokumenterne (TBL, TAG og SAB). Der kan også vedlægges enkeltstående dokumenter.\n\n","Vedlæg alle forundersøgelser, samt opgravningsplaner og heraf materialehåndtering i udbudsmaterialet.","Fremgå af tidsplan eller som ønske til rådgiverens projektering. Husk at medtag særlige ønsker til midlertidige løsninger, hvis behov herfor.",null,"Indfør krav i udbuddet, som afspejler den viden der er kendt. Det må forventes at TE skal inddrages i udformning af løsning.","Specificér kravene til stabiliseringen.\n",null,null,"Indfør krav i udbuddet. Alternativt bed TE om, at forholde sig til mulighederne.","Indfør krav i udbuddet. Alternativt bed TE om, at forholde sig til mulighederne.","Indfør krav i udbuddet. Alternativt bed TE om, at forholde sig til mulighederne.",null,"Indfør krav i udbuddet. Alternativt bed TE om, at forholde sig til mulighederne.","Indfør krav i udbuddet. Alternativt bed TE om, at forholde sig til mulighederne.","Indfør krav i udbuddet. Alternativt bed TE om, at forholde sig til mulighederne.",null," ",null,"I TBL og TAG anføres at det køres til depot. \nI SAB anføres at det leveres og hentes fra depot.",null,null," "," "," "," ",null," "]
["Forslagsfase",null,"Ressourcekortlægning ajoruføres iht fastlagte geometri.\n\nI mange tilfælde kan entreprenøren have gode forslag til optimering ift materialehåndtering eller -valg.\nDette bør tilskønnes.","Materialehåndteringsplan ajoruføres iht fastlagte geometri.\n\nI mange tilfælde kan entreprenøren have gode forslag til optimering ift materialehåndtering eller -valg.\nDette bør tilskønnes.","Gode data. Økonomiske besparelser. Høj grad af cirkulær økonomi. Mulighed for at projektere og planlægge ud fra Asset Management.","I mange tilfælde kan entreprenøren have gode forslag til optimering.\nDette bør tilskønnes.","Gennemgang af rådgivers forslag eller rådgivers indarbejdelse af bygherres oplæg.",null,"Gennemgang af TEs forslag eller TE indarbejdelse af bygherres krav.","Samarbejd med entreprenøren om at udvikle et detaljeret forslag til kalkstabiliseringen.\nFastlæg den nødvendige mængde kalk baseret på jordbundsundersøgelser og beregninger.\nVurdér den forventede effekt af kalkstabiliseringen på jordens egenskaber",null,null,"Gennemgang af TEs forslag eller TE indarbejdelse af bygherres krav.","Gennemgang af TEs forslag eller TE indarbejdelse af bygherres krav.","Gennemgang af TEs forslag eller TE indarbejdelse af bygherres krav.",null," "," "," ",null,"Identifikation af mulige designmodifikationer.  Sammenligning af emissionsfaktorer for indlejret CO2 i optimeret design og i traditionelt design (2020 baseline) via EPD’er og baseline beregninger.",null,"Følg op ved designleverancer",null,null," "," "," "," ",null," "]
["Udførelsesprojekt / projektgennemgangsmøde",null,"Ressourcekortlægning gennemgåes med entreprenør og eventuelle optimeringer afsøges.","Materialehåndteringsplanen gennemgåes med entreprenør og eventuelle optimeringer afsøges."," ","Nøjsom gennemgang af den valgte løsning","Nøjsom gennemgang af den valgte løsning",null,"Nøjsom gennemgang af den valgte løsning","Aftal og koordinér entreprenørens arbejde med kalkstabiliseringen.\n\nOvervåg kalkstabiliseringens udførelse for at sikre, at den udføres korrekt i henhold til planen.\n\nVerificér, at jorden er blevet stabiliseret tilfredsstillende ved hjælp af kalk.\nGennemfør eventuelle nødvendige tests eller inspektioner for at dokumentere kvaliteten af stabiliseringen.",null,null,"Arbejdsmetoder og materialevalg gennemgåes med entreprenør og optimeringer afsøges.","Arbejdsmetoder og materialevalg gennemgåes med entreprenør og optimeringer afsøges.","Arbejdsmetoder og materialevalg gennemgåes med entreprenør og optimeringer afsøges.",null," "," "," ",null,"Byggeplads: Identifikation af optimeringsmuligheder for anlægsarbejder og tilhørende logistik, eks. tørretider for beton, synergieffekter og intelligent styring af maskinel. ",null,"Verificer løsning",null,null," "," "," "," ",null," "]
["Udførelse",null,"Krav til dokumentation og afrapportering følges.\n\nOpgaven kan med fordel placeres hos byggeledelse eller eventuel bæredygtighedsledelse.","Krav til dokumentation og afrapportering følges.\n\nOpgaven kan med fordel placeres hos byggeledelse eller eventuel bæredygtighedsledelse.","Krav til dokumentation og afrapportering følges.\n\nOpgaven kan med fordel placeres hos byggeledelse eller eventuel bæredygtighedsledelse.","Krav til dokumentation og afrapportering følges.\n\nOpgaven kan med fordel placeres hos byggeledelse eller eventuel bæredygtighedsledelse."," ",null,"Billededokumentation og tilsyn af opbevaring.\nMængder leveres som digitale data."," ",null,null,"Byggeledelse og fagtilsyn gennemgår arbejdet og dokumentation.","Byggeledelse og fagtilsyn gennemgår arbejdet og dokumentation.","Byggeledelse og fagtilsyn gennemgår arbejdet og dokumentation.",null," "," ","Byggeleder sørger inden start af udførsel at lave en bestilling på genbrugsstabil ",null,"Måling af CO2-reduktioner.\nCO2-reduktioner skal verificeres ved EPD’er og materialemæng-der der indtastes i LCA.\n\nEntreprenøren skal fremsende aktuelle EPD’er for anvendte råmaterialer, samt oplyse mængder af de indkøbte mate-rialer. \n \nLCA kan benyttes som værktøj til udregning af de samlede CO2-reduktioner. ",null,"Byggeledelse og fagtilsyn gennemgår arbejdet og dokumentation.",null,null," "," "," "," ",null," "]
["Afslutning",null," "," "," ","Mængdeopgørelser"," ",null,"Mængdeopgørelser"," ",null,null," "," "," ",null," "," "," ",null," ",null,"Opgør mængder og eventuelle besparelser ift ny granit",null,null," "," "," "," ",null," "]
["Evaluering",null,"Hvad kan vi gøre bedre?\nEvaluering på samarbejde med rådgiver og entreprenør er vigtig.\nEffekt på pris er vigtig.\nMuligheder for optimeringer afsøges til videre brug."," "," ","Hvordan svarede projekteret med realiseret? Hvad skyldes eventuelle uoverensstemmelser? "," ",null,"Hvordan svarede projekteret med realiseret? Hvad skyldes eventuelle uoverensstemmelser? ","Vurder den samlede effekt af kalkstabiliseringen på anlægsprojektet.\nEvaluer om kalkstabiliseringen har opfyldt de ønskede mål og forbedret jordens bæreevne og stabilitet som forventet",null,null,"Hvad kan vi gøre bedre?\nEvaluering på samarbejde med rådgiver og entreprenør er vigtig.\nEffekt på pris er vigtig.\nMuligheder for optimeringer afsøges til videre brug.","Hvad kan vi gøre bedre?\nEvaluering på samarbejde med rådgiver og entreprenør er vigtig.\nEffekt på pris er vigtig.\nMuligheder for optimeringer afsøges til videre brug.","Hvad kan vi gøre bedre?\nEvaluering på samarbejde med rådgiver og entreprenør er vigtig.\nEffekt på pris er vigtig.\nMuligheder for optimeringer afsøges til videre brug.",null," "," "," ",null," ",null," ",null,null," "," "," "," ",null," "]
["Drift",null," "," "," "," "," ",null," "," ",null,null,"Driftsmæssige erfaringer er vigtige.","Driftsmæssige erfaringer er vigtige."," ",null," "," "," ",null," ",null," ",null,null," "," "," "," "," "," "]
["1 og 5 års eftersyn",null," "," "," "," "," ",null," "," ",null,null," "," "," ",null," "," "," ",null," ",null," ",null,null," "," "," "," ",null," "]
["CO2-reduktion",null," "," "," "," "," ",null," "," ",null,null,"14-22 %",0.8," ",null,"Link"," "," ",null," ",null," ",null,null," "," "," "," ",null," "]

{"sheet":"DATA_BANEPROJEKT","index":10,"n_rows":14,"n_cols":32,"rows_kept":14,"cut":false,"hidden":true,"merged":[]}
["Kolonne1","Kolonne2","Kolonne3","Kolonne4","Kolonne5","Kolonne6","Kolonne7","Kolonne8","Kolonne9","Kolonne10","Kolonne11","Kolonne12","Kolonne13","Kolonne14","Kolonne15","Kolonne16","Kolonne17","Kolonne18","Kolonne19","Kolonne20","Kolonne21","Kolonne22","Kolonne23","Kolonne24","Kolonne25","Kolonne26","Kolonne27","Kolonne28","Kolonne29","Kolonne30","Kolonne31","Kolonne32"]
["Anbefaling og initiativer","Tidlige tiltag","Ressourcekortlægning (RK)","Håndtering af jord på eller nær byggepladsen","Arbejdsdepot, oplagsareal indenfor matriklen","Forundersøgelser og Selektiv opgravning","Reetabler, som udgangspunkt, med opgravede materialer ","Kalkstabilisering","Lukke byggepladser hen over vinteren, hvor det er muligt (Årstidsplanlægning)","Myndighedsbehandling","Myndighedsbehandling\n","Materialer","Grus","Anvendelse af forbrændingsslagge til bundsikring","Anvendelse af forbrændingsslagge til stabilgrus","Knust asfalt og beton som genbrugsstabil","Beton","Øget genbrug af fortovsfliser","Generelt om krav til betonkonstruktioner","Granit","Chaussesten ","Brosten","Bordursten","Kantsten, fast og kløvet","Optimering af udførslen i forhold til direkte og indirekte råstofforbrug","Minimering af spild og affald","Digital lagring og modtagekontrol","Skræddersyet leverancer","Opbevaring, sortering og dokumentering af det affald, som ikke kan undgås","Optimeret intern logistik og fragt","Detaljeringsniveauet af udførelsen","Passende BIM-niveau"]
["Beskrivelse",null,"Bygge- og anlægsmaterialer skal ses som ressourcer. Ressourcekortlægning går ud på at kortlægge materialer, som kan genanvendes direkte på samme projekt, samt lægge en plan for hvordan man håndterer de materialer, som ikke kan genanvendes på pågældende projekt. \nHåndteringen går både på udførelsesmetoder, opbevaring, genanvendelse og bortskaffelse/deponering.. Målet er at det skal være et værktøj til at planlægge og indsamle data om genanvendelse.",null,"Opgravet jord skal opbevares og behandles i henhold til muligheden for at skabe størst værdi for bygherren, både i forhold til ressourceforbrug og økonomi","Selektiv opgravning kan være et vigtigt redskab til at sikre, at jord inddeles efter klasse og kvalitet. En effektiv inddeling og opbevaring af opgravede materialer er nødvendig for at reducere råstofforbruget. For at planlægge Selektiv opgravning, skal der være et passende kendskab til de materialer, som skal opgraves. Det passende kendskab vil traditionelt sikres ved passende forundersøgelser, dette kan fx gøres i forbindelse med en Ressourcekortlægning.","Når materialer opgraves, er det i flest tilfælde tilsvarende materialer, som ligger umiddelbart rundt om udgravningen. Det betyder, at ved gunstig opbevaring og håndtering, at det i mange tilfælde vil kunne genindbygges.\n\nI mange tilfælde kan der argumenteres imod de høje krav til indbygningsmaterialer til reetablering efter opgravning. Krav om fx nye eller endda jomfruelige materialer vil være i konflikt med de fleste bygherres behov for at reducere råstofforbruget. Vurderingen af krav til indbygningsmaterialer skal vurderes i forhold til det enkelte projekt. En af mulighederne for, at omgås krav om fx jomfruelige materialer til indbygning, er at have en tidlig dialog med de myndigheder, som skal overtage anlægget.","Kalkstabilisering er en teknik, der anvendes til at forbedre jordens egenskaber og stabilisere den til brug i anlægsprojekter.","Mange arbejder i anlægsprojekter er udfordret i vinteren. Det skyldes både kulde og frost, vand og sne og reduceret dagslys, som alt i alt ofte resulterer i mindre produktivitet og at opgravede materialer bliver umedgørlige.",null,"Bygherrer kan opleve, at projekter kan genbruge eller genanvende i forskellig grad afhængig af fx en kommunegrænse eller endda internt i kommunen. Det betyder, at et forsyningsselskab kan fx kan få tilladelse til at anvende nedknust asfalt og beton som ubunden bærelag under befæstede arealer i en del af et projekt, med afslag i en anden del af det samme projekt, blot fordi projektet har krydset en kommunegrænse. Det fremhævede eksempel er ikke enkeltstående og bunder ikke i miljøhensyn, men i forskellige syn på genbrug, genanvendelse og nyttiggørelse. \nNår bygherrer oplever sådan, eller anden potentielt uhensigtsmæssig myndighedsbehandling, kan det være en hæmsko for reducering af råstofforbruget.",null,null,"Forbrændingsslagge (FS) er et grundigt bearbejdet og kontrolleret restprodukt fra affaldsforbrænding. For nuværende foreskriver VDs udbudsforskrift at det anvendes til og med trafikklasse T4. Forbrændingsslagge er indarbejdet på forsøgsbasis på Nordhavnsvej, der er er en større trafiklasse end T4.","Forbrændingsslagge (FS) er et grundigt bearbejdet og kontrolleret restprodukt fra affaldsforbrænding. Der pågår forsøg, der viser at forbrændingsslagge opfylder krav iht kornkurve for SGll.","KAS (knust asfalt), KAB (knust asfalt-beton) og KBT (Knust beton og tegl) er velkendte materialer. I visse tilfælde kan det give mening, at anvende fremfor jomfruelige grusgravsmaterialer.",null,"Hvis fortovsfliser kan genbruges, så bør det prioriteres.\n","At opnå 30% og 50% CO2-reduktion (i hhv. 2025 og 2030 fra baseline 2020) i lighed med regeringens mål om 70% CO2-reduktion i 2030 i henhold til 1990 niveau. På samme måde som regeringen ønsker at markedet og virksomhederne laver tiltag, der kan bidrage til at opnå dette mål, ønsker Københavns Kommune ligeledes at udfordre markedet med krav til materialeleverandører og entreprenører på KKs projekter.\n\nAf betonkonstruktionsprojekter (fx bro og tunnelprojekter) svarer betonen samlede CO2-udledning for op mod 60-70% og her står cement for den altoverskyggende del – helt op til ca. 80 %. Reduktion af CO2-udledning fra cement kan ske ved:\n\n1)\tAnvendelse af cement med mindre CO2-udledning. Dette kan f.eks. opnås ved at substituere dele af cementen med flyveaske og microsilika.\n2)\tBruge mindre cement per m3 beton. Dette kan f.eks. opnås ved at acceptere længere hærdetider for betonkonstruktioner.\n3)\tAnvende mindre beton gennem optimering af tværsnit. \n\nStål til armering står for ca. 10 % af større betonkonstruktionsprojekters samlede CO2-udledning. Reduktion kan ske gennem at stille krav til anvendelse af genbrugsstål og forarbejdning vha. f.eks. grøn strøm.\n\nOverordnede mål kan være at stille krav til LCA, EPDer og optimeret design, herunder BIM-niveau.\n\nKonkrette mål kan være at reducere mængden af beton så meget som muligt i design af både midlertidige (fx sekantpæle) og permanente konstruktioner, eks. slankere konstruktioner eller substitutioner til betonen, brug af mere stål og mindre beton mv.",null,"Genbrug på projekt eller via depot","Genbrug på projekt eller via depot","Genbruges på projektet eller køres i depot.\nHvis ej velegnet (større revner, hakker eller flier): overvej alternativ udnyttelse","Af beton: indgå som tilslag i ny beton eller nedknus til anvendelse som KAB\nAf granit: Genbrug på projekt eller via depot\nAf granit, hvis de er under 50 cm eller beskadiget: overvej alternativ udnyttelse\nRadiekantsten: Genbrug på projekt eller via depot",null,null,"Modtagekontrol sikrer at materialer er i tilstrækkelig kvantitet og kvalitet, således der ikke kommer ubehagelige overraskelser.\nDigital lagring sikrer at dokumentation og data for materialerne er tilgængelige.","Hvis det i projektet er klart defineret, hvad og hvor meget, der skal anvendes, kan en entreprenør i højere grad sikre at der ikke opstår spild. \nBlandt andet kan materialer som gips og beton være relevante.","For at sikre bæredygtig affaldssortering skal vi stille høje krav. ","Formålet med initiativet er reducere forbruget af brændstof og dermed CO2-udledning ved at optimere leverancer og logistik til og på byggepladsen.\nVed bestilling af varer skal der fokuseres på, at levering sker i hele læs, og at lastbilerne kører med den maksimale vægt, så antallet af kørsler reduceres mest muligt.\nDette vægtningskrav skal kombineres med ønsket om, at varer leveres direkte ved indbygningsstedet, hvis det er muligt.\nReturlæs (jord væk fra pladsen og grus til pladsen) skal optimeres – ligeledes ud fra et ønske om at reducere antallet af kørsler.\nEventuelt kan tidsplaner drøftes i samarbejde med leverandører, så leverandørerne kan indarbejde tidsplaner fra flere forskellige kunder og dermed udarbejde en kørselsrute med fulde læs, når der skal leveres varer, så kørslen minimeres mest muligt.\nDer kan f.eks. anvendes udvidet brug af 3D-modeller, hvor leverancer er angivet på modellen, så leverandører kan se, præcist hvor tilkørt materiale skal anvendes. Brug ID-numre og tidsplan (4D), så leverandør/byggeledelse kan planlægge leverancer efter dette.",null,"Hvad skal dit projekt kunne ift BIM og digitalisering? Følgende spørgsmål bør stilles\n - Skal modellerne kunne bruges til drift, herunder CO2 -neutral drift?\n - Skal entreprenørmaskiner kunne arbejde efter modeller?\n - Skal der implementeres en grad af digital tvilling i projektet?\n\nVed at analysere og simulere forskellige design- og konstruktionsalternativer kan man identificere optimerede løsninger, der kræver mindre råmaterialer, samtidig med at de opfylder de nødvendige funktionelle og tekniske krav."]
["Behov, som afdækkes",null," ",null,"Håndtering af jord på eller nær byggepladsen. Dermed  øge genbrug af jord og reducere råstofforbruget og i mange tilfælde mindske udgifter og klimapåvirkning.","Håndtering af jord på eller nær byggepladsen. Effektiv inddeling og håndtering af den jord, som bruges på projektet, andre projekter eller skal bortskaffes, fx i forhold til en Materialehåndteringsplan. \nDermed  øge genbrug af jord og reducere råstofforbruget og i mange tilfælde mindske udgifter og klimapåvirkning.","Øge genindbygningsmængden af opgravede materialer. Dermed øge genbrug og reducere råstofforbruget og i mange tilfælde reducere udgifter og klimapåvirkning."," ","Undgå at skulle bortkøre store mængder materialer, som både medfører uforbeholdsmæssigt store udgifter og stort ressourcetræk.",null,"Der er et behov for en ensartet myndighedsbehandling vedrørende genbrug, genanvendelse og nyttiggørelse. Løsningen kan i mange tilfælde være dialog og tidlig inddragelse, men bygherrer har også et behov for et mere ensartet, og måske endda proaktiv, myndighedsbehandling af genbrug, genanvendelse og nyttiggørelse af materialer.",null,null,"Reducering af råstofforbrug igennem krav til leverandører og producenter","Reducering af råstofforbrug igennem krav til leverandører og producenter","Reducering af råstofforbrug igennem krav til leverandører og producenter",null,"Reducering af råstofforbrug igennem krav til leverandører og producenter"," ",null,"Reducering af råstofforbrug igennem krav til leverandører og producenter","Reducering af råstofforbrug igennem krav til leverandører og producenter","Reducering af råstofforbrug igennem krav til leverandører og producenter","Reducering af råstofforbrug igennem krav til leverandører og producenter",null,null," "," "," "," ",null," "]
["Afgrænsning",null,"Ressourcekortlægning opstartes så snart der er tilstrækkelige forundersøgelser.\n\nMan kan bede rådgiver stå for eller bidrage til ressourcekortlægningen.\nHvis ressourcekortlægning er udført, indskrives i ATR at Rådgiver gennemgår og løbende ajourfører.",null,"Bygherre vurderer om pladsen kan findes indenfor eller nær projektområdet\n\nResultat fra planlægning beskrives i rådgiverudbud. Alternativt bedes rådgiver levere en ydelse herom","Hvilke data er tilgængelig?\nHvilke forundersøgelser skal laves? \nEventuel samtænkning med Ressourcekortlægning.\n\nBeskriv ønsket i rådgiverudbuddet. Eventuelt på baggrund af opgave fra rådgiver eller ydelsesbeskrivelse.\nTilgængelige data synliggøres\nØnskede forundersøgelser beskrives.","Kan projektet planlægges, således at udvalgte arbejder undgås om vinteren eller kan byggepladsen lukkes henover vinteret?\nKan der stilles lavere krav til Proctor-værdier?","Identificer områder, hvor jorden er ustabil eller har dårlige bæreevneegenskaber, og hvor kalkstabilisering kan være relevant.\nUdfør jordbundsundersøgelser for at vurdere jordens sammensætning og egenskaber.\nEvaluér om kalkstabilisering er den rette metode til at forbedre jordens bæreevne og stabilitet i de pågældende områder.\n\nBeskriv kalkstabilisering som et potentielt ønske i projektet.","Kan projektet planlægges, således at udvalgte arbejder undgås om vinteren eller kan byggepladsen lukkes henover vinteret?\n\nFremgå af tidsplan eller som ønske til rådgiverens projektering. Husk at medtag særlige ønsker til midlertidige løsninger, hvis behov herfor.",null,"Inddrag relevante myndigheder. Beskriv og eller gå i dialog om hensigter og ønsker vedrørende tiltag, som reducerer råstofforbruget\n\nOvervej hvem, som håndterer opgaver omkring myndighedsinddragelse. Beskriv hvem, hvad og hvornår i ATR.",null,null,"Del af projektbeskrivelse. \nSørg for dialog med vej- og miljømyndigheder\n\nI beskrivelsen og ATR indføres tekst om krav/ønske om anvendelse af ønske/hensigt.","Del af projektbeskrivelse. \nSørg for dialog med vej- og miljømyndigheder\n\nI beskrivelsen og ATR indføres tekst om krav/ønske om anvendelse af ønske/hensigt.","Del af projektbeskrivelse. \nSørg for dialog med vej- og miljømyndigheder\n\nI beskrivelsen og ATR indføres tekst om krav/ønske om anvendelse af ønske/hensigt.",null,"Del af projektbeskrivelsen. \nOpmærksomhedspunkt ved Ressourcekortlægning\n\nI beskrivelsen og ATR indføres tekst om krav/ønske om anvendelse af ønske/hensigt"," ",null,"Del af projektbeskrivelsen. \nOpmærksomhedspunkt ved Ressourcekortlægning\n\nI beskrivelsen og ATR indføres tekst om krav/ønske om anvendelse af ønske/hensigt","Del af projektbeskrivelsen. \nOpmærksomhedspunkt ved Ressourcekortlægning\n\nI beskrivelsen og ATR indføres tekst om krav/ønske om anvendelse af ønske/hensigt","Del af projektbeskrivelsen. \nOpmærksomhedspunkt ved Ressourcekortlægning\nI beskrivelsen og ATR indføres tekst om krav/ønske om anvendelse af ønske/hensigt","Del af projektbeskrivelsen. \nOpmærksomhedspunkt ved Ressourcekortlægning\n\nI beskrivelsen og ATR indføres tekst om krav/ønske om anvendelse af ønske/hensigt",null,null," ","Identificering og specificering af de nødvendige materialer til projektet. Dette indebærer en detaljeret gennemgang af projektets krav og specifikationer for at sikre, at de rigtige materialer bliver valgt.\n\nI beskrivelsen og ATR indføres tekst om krav/ønske om anvendelse af ønske/hensigt","Inden byggeprojektet påbegyndes, bør der udarbejdes en affaldsplan. Denne plan identificerer og beskriver de forskellige typer affald, der forventes at blive genereret under projektet, og fastlægger de nødvendige foranstaltninger til opbevaring, sortering og håndtering af affaldet.\n\nI beskrivelsen og ATR indføres tekst om krav/ønske om anvendelse af ønske/hensigt","En omhyggelig planlægning og koordinering af logistik og fragt er afgørende. Dette indebærer at identificere de nødvendige materialer, udstyr og ressourcer til projektet samt fastlægge leveringstidspunkter og transportmetoder. En tidsplan og logistikplan bør udarbejdes, der tager højde for forskellige faktorer som vejrforhold, trafik, adgangsrestriktioner og byggepladsens indretning.\n\nI beskrivelsen og ATR indføres tekst om krav/ønske om anvendelse af ønske/hensigt",null,"Hvad er der af eksisterende opmåling eller anden data om projektområdet?\n\nI beskrivelsen og ATR indføres tekst om krav/ønske om anvendelse af ønske/hensigt"]
["Detailprojektering",null,"Ressourcekortlægningen ajoruføres iht fastlagte geometri.\n\nRessourcekortlægningen indarbejdes i TBL, TAG, tegninger og SAB.",null,"Gennemgang af rådgivers forslag eller rådgivers indarbejdelse af bygherres oplæg.","Gennemgang af rådgivers forslag i forhold til Materialehåndteringsplan og mængder.\n","Gennemgang af rådgivers forslag eller rådgivers indarbejdelse af bygherres oplæg.","Beskriv kalkstabilisering som en mulig metode i udbudsmaterialet til udførelse af projektet.\nSpecificér kravene til stabiliseringen, herunder mængden af kalk og eventuelle andre tilsætningsstoffer.","Gennemgang af rådgivers forslag eller rådgivers indarbejdelse af bygherres oplæg.",null,"Opfølgning",null,null,"Projekterende finder mængderne og indskriver i TBL","Projekterende finder mængderne og indskriver i TBL","Projekterende finder mængderne og indskriver i TBL",null,"Projekterende finder mængderne og indskriver i TBL","Identifikation af mulige designmodifikationer.  Sammenligning af emissionsfaktorer for indlejret CO2 i optimeret design og i traditionelt design (2020 baseline) via EPD’er og baseline beregninger.\n\nIdentifikation af mulige designmodifikationer.  Sammenligning af emissionsfaktorer for indlejret CO2 i optimeret design og i traditionelt design (2020 baseline) via EPD’er og baseline beregninger.\n\nByggeplads: Identifikation af optimeringsmuligheder for anlægsarbejder og tilhørende logistik, eks. tørretider for beton, synergieffekter og intelligent styring af maskinel. \n\nTransport: Kørsel på selve byg-gepladsen skal være så fossil-frit som muligt, eks. el, bio-dielsel eller brintdrevne køretøjer og maskinel. Kørsel til og fra byggepladsen skal være så kort og effektiv (intelligent styring) og fossilfrit som muligt. Trans-port af materialer via søvejen skal prioriteres",null,"I TBL og TAG anføres at det køres til depot. \nI SAB anføres at det leveres og hentes fra depot","I TBL og TAG anføres at det køres til depot. \nI SAB anføres at det leveres og hentes fra depot.","I TBL og TAG anføres at det køres til depot. \nI SAB anføres at det leveres og hentes fra depot.","I TBL og TAG anføres at det køres til depot. \nI SAB anføres at det leveres og hentes fra depot.",null,null," ","Opfølgning.\nEr der mulighed for, at tilvælge skræddersyede produkter fremfor standard størrelser?\n","Der bør etableres dedikerede områder til opbevaring af affald på byggepladsen. Disse områder skal være tilstrækkeligt dimensionerede og udstyret med passende affaldscontainere eller beholdere. Affaldet bør placeres sikkert og i overensstemmelse med gældende regler og forordninger for affaldshåndtering.","Byggepladsens adgangsveje og logistikområder skal planlægges og organiseres for at lette den indgående og udgående trafik af materialer og udstyr. Det kan være nødvendigt at etablere midlertidige kørselsveje, losningsområder og lagringspladser for at optimere logistikken og minimere forsinkelser.\n\nDet er vigtigt at byggeleder inddrages i planlægningen af byggepladsen og udførelsestidsplanen",null,"Projekterende producerer præcise mængdeudtræk og materialelister baseret på den virtuelle model. Dette gør det muligt at bestille nøjagtigt den mængde materialer, der er behov for til anlægsprojektet, og undgå overbestilling eller spild. Ved at minimere overskydende materialer reduceres råstofforbruget.\n\nProjekterende integrerer informationer om materialers egenskaber, levetid og potentiale for genanvendelse i BIM-modellen så der let identificere materialer, der kan genbruges eller genanvendes i andre projekter. \n\nDette sætter et krav til bygherrens Asset Management eller blot lagring af digital viden. Ved indførelse af materialepas, eller lignende, vil dette være et fordel."]
["Entreprenørudbud",null,"Der kan eventuelt indføres option på enkelte delposter.",null,"Afspejles i alle udbudsdokumenter, særligt TBL, TAG, SAB og tegninger.\n\nAlternativt kan man bede entreprenøren om at komme med et oplæg, hvilket vil kræve tid og samarbejde.","Afspejles i alle udbudsdokumenter, særligt TBL, TAG, SAB og tegninger. Der skal fremgå detaljerede planer og snit af forholdende.\n\nAlternativt kan man bede entreprenøren om at komme med et oplæg, hvilket vil kræve tid og samarbejde.","Afspejles i alle udbudsdokumenter, særligt TBL, TAG, SAB og tegninger.\n\nAlternativt kan man bede entreprenøren om at komme med et oplæg, hvilket vil kræve tid og samarbejde.","Afspejles i alle udbudsdokumenter, særligt TBL, TAG, SAB og tegninger.\n\nAlternativt kan man bede entreprenøren om at komme med et oplæg, hvilket vil kræve tid og samarbejde.\n\nDet kan være nødvendigt, at entreprenøren viser erfaring med, at arbejde med kalkstabilisering.","Afspejles i udbudsmaterialet",null,"Opfølgning",null,null,"Rådgiver indfører krav i TBL, TAG og SAB","Rådgiver indfører krav i TBL, TAG og SAB","Rådgiver indfører krav i TBL, TAG og SAB",null,"Rådgiver indfører krav i TBL, TAG og SAB.\nI entreprenørudbud kan der gives fratræk pr. genbrugte fortovsflise. Fx passende med 50% af prisen på en leveret.","Entreprenøren skal beskrive hvordan CO2 reduktionen for drift af byggepladsen kan opnås.\n\nVed store projekter: anvendelse af bod og bonus model.  Fastsættelse af nedre og øvre grænser for bod og bonus i udbudsmaterialet. Styring af bod og bonus i anlægsfasen via fx KPI’er. KPI’er skal være målbare og uden mulighed for fortolkning. KPI i dette mål er %-del CO2 reduktion. Bod og bonus skal benyttes på månedlig eller årlig basis via aktuelle værdier og frem-skrivninger, og justeres efter endt anlægsfase og slutfaktura.  ",null,"Rådgiver indfører krav i TBL, TAG og SAB","Rådgiver indfører krav i TBL, TAG og SAB","Rådgiver indfører krav i TBL, TAG og SAB","Rådgiver indfører krav i TBL, TAG og SAB",null,null,"Bed entreprenøren beskrive, hvordan de vil arbejde med digital modtagekontrol og lagring.\nAlternativt kan der stilles krav til at al dokumentation skal ske digitalt, enten via forudbestemt portal eller mail - indscanning skal undgås."," ","1) indfør som krav i særligt SAB at, eller 2) Bed entreprenøren beskrive hvordan denne vil sikre at: Affaldet sorteres korrekt for at muliggøre genanvendelse og korrekt bortskaffelse. Dette kan omfatte at opstille forskellige beholdere eller containere til specifikke affaldstyper, såsom træ, metal, plast, byggematerialer osv. Arbejdstagerne skal være opmærksomme på de korrekte sorteringsprocedurer og uddannes om affaldshåndtering.","Afspejles i planer i udbud.\nUdpensl hvad entreprenøren skal vise i sin tidsplan.",null,"Entreprenøren skal have muligheden for at styre arbejder efter modeller. "]
["Projektgennemgang m. Entreprenør",null,"RK gennemgåes med entreprenør og eventuelle optimeringer afsøges.",null,"Nøjsom gennemgang af den valgte løsning","Nøjsom gennemgang af den valgte løsning","Nøjsom gennemgang af den valgte løsning"," ","Nøjsom gennemgang af den valgte løsning",null,"Opfølgning",null,null,"Arbejdsmetoder og materialevalg gennemgåes med entreprenør og optimeringer afsøges.","Arbejdsmetoder og materialevalg gennemgåes med entreprenør og optimeringer afsøges.","Arbejdsmetoder og materialevalg gennemgåes med entreprenør og optimeringer afsøges.",null,"Arbejdsmetoder og materialevalg gennemgåes med entreprenør og optimeringer afsøges.","Byggeplads: Identifikation af optimeringsmuligheder for anlægsarbejder og tilhørende logistik, eks. tørretider for beton, synergieffekter og intelligent styring af maskinel. ",null,"Arbejdsmetoder og materialevalg gennemgåes med entreprenør og optimeringer afsøges.","Arbejdsmetoder og materialevalg gennemgåes med entreprenør og optimeringer afsøges.","Arbejdsmetoder og materialevalg gennemgåes med entreprenør og optimeringer afsøges.","Arbejdsmetoder og materialevalg gennemgåes med entreprenør og optimeringer afsøges.",null,null,"Arbejdsmetoder og processer gennemgåes med entreprenør og optimeringer afsøges.","Kan entreprenøren optimere? (husk at skræddersyede produkter kan komme med en meromkostning)\nKlar og præcis kommunikation mellem bygherren, entreprenører og leverandører er afgørende. Alle parter skal være enige om specifikationer, mængder, kvalitetsstandarder og leveringstidspunkter for materialerne. Dette sikrer, at de rigtige materialer leveres på det rigtige tidspunkt."," ","Det er vigtigt at entreprenørens bidrag kan implementeres, således der skabes en fælles forståelse for logistik og tidsplan.",null," "]
["Udførelse",null,"Byggeledelse og fagtilsyn gennemgår arbejdet og dokumentation.",null,"Billededokumentation og tilsyn af opbevaring.\nMængder leveres som digitale data.","Billededokumentation, leveringsdokumentation, opmåling og tilsyn ","Billededokumentation og tilsyn af opbevaring.\nMængder leveres som digitale data."," ","Tilsyn og opfølgning på eventuelle midlertidige løsninger, som påvirker arealer, materialer og trafik.",null,"Opfølgning",null,null,"Byggeledelse og fagtilsyn gennemgår arbejdet og dokumentation.\n","Byggeledelse og fagtilsyn gennemgår arbejdet og dokumentation.\n","Byggeleder sørger inden start af udførsel at lave en bestilling på genbrugsstabil ",null,"Byggeleder sørger inden start af udførsel at lave en bestilling på genbrugsstabil ","Måling af CO2-reduktioner.\nCO2-reduktioner skal verificeres ved EPD’er og materialemæng-der der indtastes i LCA.\n\nEntreprenøren skal fremsende aktuelle EPD’er for anvendte råmaterialer, samt oplyse mængder af de indkøbte mate-rialer. \n \nLCA kan benyttes som værktøj til udregning af de samlede CO2-reduktioner. ",null,"Byggeledelse og fagtilsyn gennemgår arbejdet og dokumentation.","Byggeledelse og fagtilsyn gennemgår arbejdet og dokumentation.","Byggeledelse og fagtilsyn gennemgår arbejdet og dokumentation.","Byggeledelse og fagtilsyn gennemgår arbejdet og dokumentation.",null,null,"Byggeledelse og fagtilsyn gennemgår arbejdet og dokumentation."," ","Det er vigtigt at opretholde en nøjagtig dokumentation af affaldshåndteringen på byggepladsen. Dette kan omfatte affaldsregistrering, herunder mængder, affaldstyper og destinationen for bortskaffelse eller genanvendelse. Dokumentationen kan være påkrævet af myndighederne eller bruges som en intern kontrolmekanisme.\n\nKontinuerlig overvågning og opfølgning af affaldshåndteringen er vigtig for at sikre, at planen og procedurerne følges korrekt. Byggepladsens personale og ansvarlige parter bør være opmærksomme på og rapportere eventuelle problemer eller afvigelser fra planen, så der kan træffes passende foranstaltninger.","Byggeledelse og fagtilsyn gennemgår arbejdet og dokumentation. \nFor at kunne planlægge arbejdet ordentligt, er det vigtigt at projekteringen er afsluttet og låst.",null,"Byggeledelse og fagtilsyn gennemgår arbejdet og dokumentation. "]
["Afslutning",null," ",null,"Opsamling","Mængdeopgørelser","Mængdeopgørelser"," "," ",null,"Opfølgning",null,null," "," "," ",null," "," ",null," "," "," "," ",null,null," "," "," "," ",null,"Modtaget data skal håndteres hensigtsmæssigt for fremtidig brug"]
["Evaluering",null,"Hvad kan vi gøre bedre?\nEvaluering på samarbejde med rådgiver og entreprenør er vigtig.\nEffekt på pris er vigtig.\nMuligheder for optimeringer afsøges til videre brug.",null,"Hvad kunne lade sig gøre på den pågældende plads?","Hvordan svarede projekteret med realiseret? Hvad skyldes eventuelle uoverensstemmelser? ","Hvordan svarede projekteret med realiseret? Hvad skyldes eventuelle uoverensstemmelser? "," "," ",null,"Evaluering af samarbejdet med myndighederne",null,null," "," "," ",null," "," ",null," "," "," "," ",null,null," "," "," ","Hvad kan vi gøre bedre?\nEvaluering på samarbejde med rådgiver og entreprenør er vigtig.\nEffekt på pris er vigtig.\nMuligheder for optimeringer afsøges til videre brug.",null," "]
["Drift",null," ",null," "," "," "," "," ",null," ",null,null," "," "," ",null," "," ",null," "," "," "," ",null,null," "," "," "," ",null," "]
["1 og 5 års eftersyn",null," ",null," "," "," "," "," ",null," ",null,null," "," "," ",null," "," ",null," "," "," "," ",null,null," "," "," "," ",null," "]
["CO2-reduktion",null,"CO2-beregning af antal sparede kørte km kan beregnes. Kan i tilfælde erstatte CO2 udledning fra jomfruelige materialer.",null,"CO2-beregning af antal sparede kørte km kan beregnes. Kan i tilfælde erstatte CO2 udledning fra jomfruelige materialer."," ","CO2-beregning af antal sparede kørte km kan beregnes. Kan i tilfælde erstatte CO2 udledning fra jomfruelige materialer."," "," ",null," ",null,null,"Link","Link"," ",null,"CO2-beregning af antal sparede kørte km kan beregnes. Kan i tilfælde erstatte CO2 udledning fra nye fortovsfliser."," ",null,"CO2-beregning af antal sparede kørte (og sejlede) km kan beregnes. Kan i tilfælde erstatte CO2 udledning fra nye fortovsfliser.","CO2-beregning af antal sparede kørte (og sejlede) km kan beregnes. Kan i tilfælde erstatte CO2 udledning fra nye fortovsfliser.","CO2-beregning af antal sparede kørte (og sejlede) km kan beregnes. Kan i tilfælde erstatte CO2 udledning fra nye fortovsfliser.","CO2-beregning af antal sparede kørte (og sejlede) km kan beregnes. Kan i tilfælde erstatte CO2 udledning fra nye fortovsfliser.",null,null," "," "," "," ",null," "]

{"sheet":"DATA_ORGANISATORISKE VÆRKTØJER","index":11,"n_rows":8,"n_cols":6,"rows_kept":8,"cut":false,"hidden":true,"merged":[]}
["Kolonne1","Kolonne2","Kolonne3","Kolonne4","Kolonne5","Kolonne6"]
["Anbefaling og initiativer","Digital Tilbudsliste (DTBL)","Materialestrømsanalyse (MFA, Mass Flow Analysis).  ","Materialehåndteringsplan (MHP)","Udbudsparadigmer","Materialeplads eller Jorddepot"]
["Beskrivelse","Digital Tilbudsliste (DTBL) dækker over et værktøj, som skal understøtte indsamling og formidling af data om materialer, arbejder, mængder og økonomi for en bygherres samlede projektportefølje. \n\nEn Digital tilbudsliste vil i udgangspunktet være tilgængelig via en hjemmeside eller i en cloud-funktion, men derudover er der ikke stor forskel på den måde der for nuværende arbejdes med tilbudslister. Overordnet skal tilbudslisten indeholde alle de mulige arbejder, som bygherren har på tværs af det projektportefølje, ligesom mange har for nuværende. Forskellen er at al data om projektet bliver tilgængeligt. Det giver store muligheder i forhold til prisestimering, materialestrømme og optimeringer herpå. En Digital Tilbudsliste kan med fordel samtænkes med alle de øvrige organisatoriske værktøjer, herunder særligt Materialestrømsanalyse. Med en ”Tilbudslisten (TBL)” vil aktuelle prisdata og materialeflow altid være opdateret og tilgængelige. \n","Materialestrømsanalyse (Mass flow analysis, MFA) dækker over en metode til at analysere og præsentere de materialestrømme, som går ind og ud af en bygherres projekter og drift- og vedligeholdelsesopgaver. \n\nVærktøjet kan bruges digitalt eller manuelt. Ved digitalt forståes, at det er en funktion af den Digitale Tilbudsliste. Ved manuelt forståes, at værktøjet er et tilpasset excel ark, hvor projektdata indføres.","En Materialehåndteringsplan (MHP) definerer, hvordan opgravede materialer skal håndteres, således at råstofforbruget kan reduceres og asset management kan understøttes. Dermed forankres håndtering af materialer i bygherrefunktionen.\n\nResultater fra analyser i MFA og Digital Tilbudsliste skal indarbejdes i værktøjet og derefter i udbudsparadigmer eller udbudsdokumenter.","Udbudsparadigmer er en bygherres standardparadigme for fx Særlige Arbejdsbeskrivelser (SAB), Tilbudsliste (TBL) og Tilbuds- og Afregningsgrundlag (TAG) mv.\n\nNår en bygherre har sine egne udbudsparadigmer, giver det, blandt andet, mulighed for at forankre tiltag og analyseresultater på tværs af alle bygherrens projekter.","En materialeplads er et mellemdepot, som kan være permanent eller midlertidig. På en materialeplads kan man anvendes til kartering, sortering og knusning af jord, grus, sand, beton og asfalt inden endelig anvendelse. \n\nFor flere bygherrer kan en materialeplads give stor værdi i forhold til reducering af råstofforbrug og økonomi. En materialeplads kan fungere på forskellige måder:\n - Internt firma\n - Rammeaftale med privat part\n - Partnerskab med privat part"]
["Behov, som afdækkes","Bygherrerne mangler et værktøj til løbende indsamling af data om ressourceforbrug. Værktøjet vil ligeledes kunne give prisdata og prisudvikling.\n","Bygherrerne mangler datagrundlag til at analyser om, hvor og hvordan de kan reducere råstofforbruget mest effektivt. \n","I mange tilfælde har bygherrerne behov for en plan, som beskriver, hvordan materialer på tværs af bygherrens projekter, håndteres mest effektivt i forhold til reducering af ressourceforbrug og økonomi. ","Bygherrer har behov for, at ønskede tiltag til reducering af råstofforbruget implementeres i udbudsdokumenter. Nogle bygherrer har behov for udvikling af egne udbudsparadigmer, andre har i første omgang behov for at de udbudsdokumenter som rådgivere udarbejder på projektbasis er mere skræddersyet til at understøtte bygherrernes behov for at reducere af råstofforbruget. ","Når materialer forlader bygherrernes byggepladser, kan det være svært at spore endedestinationerne - Det har bygherrerne i større grad behov for at kende. Både i forhold til rapportering og Asset Management. Det kan styres via mere nøjsom dokumentation eller en øget hjemtagelse af håndteringen ved fx. en Materialeplads eller et Jorddepot."]
["Budget","Ved intern udvikling:\nDer er behov for en specialiseret IT-afdeling og en projektleder med kendskab til udbud og standardiserede projekter. Værktøjet skal også driftes.\n\nVed ekstern udvikling:\nKan værktøjet udvikles og sælges via ekstern leverandør?\n\nKan flere bygherrer gå sammen om udvikling?\n","Udgifter forventes at være lave både ved digital og manuel løsning. \nVed manuel løsning vil der være en udgift ved udvikling af værktøjet, men driftsomkostningerne forventes at være lave.","Udgifter forventes at være lave. I mange tilfælde vil der være behov for at tilkøbe ekspertviden, men udgifterne forventes at kunne holdes nede, ved grundigt forarbejde.\nDer skal udarbejdes en plan for drift af værktøjet.","Udgifter forventes at være lave. I mange tilfælde vil der være behov for at tilkøbe ekspertviden, men udgifterne forventes at kunne holdes nede, ved grundigt forarbejde.\nDer skal udarbejdes en plan for drift af værktøjet, driften kan forankres internt, men også tilkøbes eksternt.","Ved Internt firma: Ved store volumner, kan de høje omkostning betales ved besparelse på projekter.\nVed rammeaftale: bør give en mere fordeltagtig pris og bedre data.\nVed partnerskab: Her kan der både være relativ lave omkostninger og store besparelser på projekter."]
["Kompatibilitet","Værktøjet passer med eksisterende værktøjer og processer. \nFor nuværende er tilbudslister generelt excel-baserede dokumenter, uden automatiseret dataopsamling.","Værktøjets output er dets data og illustrationer, som gør det nemmere at analyserer og udvælge tiltag til at reducere råstofforbruget mm. \nVærktøjet passer med den gængse måde at arbejde på, på tværs af branchen.","Værktøjet passer godt sammen med den måde man traditionelt styrer Asset Management.","Udbudsparadigmer er en gængs måde at styre udbudsdokumenter på tværs af branchen. ","Alle løsninger kan på sin vis passe de fleste af de danske bygherrer, så længe at det giver goegrafisk mening."]
["Integration","Værktøjet kan give værdifuld data til at integrere med planlægning og budgettering af nye opgaver.\n\nVærktøjet kan med fordel integreres med Material Flow Analyse.\n\nVærktøjet skal integreres i udbudsdokumenter.","Værktøjet kan give let overskuelige data, som let kan integreres i eksisterende og fremtidig arbejde og processer.","Kan med fordel integreres med den generele styring af, og den digitale del af, Asset Management. Desuden skal værktøjets retningslinjer for hpndtering af materialer indskrives i udbudsparadigmer eller udbudsdokumenter. Resultater fra analyser i MFA og Digital Tilbudsliste skal indarbejdes i værktøjet og derefter i udbudsparadigmer eller udbudsdokumenter.","Det anses som en overkommelig integration, som i mange tilfælde vil give mere genkendelige processer på de enkelte projekter.","Det vil med stor sandsynlighed helt naturligt blive integreret i Udbudsparadigmer, Materialehåndteringsplan, MFA og den Digitale Tilbudsliste."]
["Mulighedsskabelse","Alle data om forbrug fra projekter indsamles automatisk, dermed kan alle data for materialestrømme og pris være tilgængelige.","Ved at kende de materialestrømme, som er ind- og ud af bygherrens projektportefølje, kan man reducere råstofforbruget på på et databaseret grundlag. Man vil ligeledes kunne basere investeringer og prioriteter baseret på værktøjets resultater.\n\nViden vil i høj grad kunne deles med og bruges af lignende bygherrer.","Giver et styrket kendskab til fremtidige materialestrømme. Giver et styrket Asset Management. Giver potentialer for at kunne planlægge og øge genbrug og dermed muligheden for at reducere råstofforbruget.","Udbudsparadigmer er en oplagt vej at integrere analyseresultater og tiltag i projekter. I mange tilfælde kan udbudsparadigmer være en stor del af operationaliseringen bag implementering af innovation og nye tiltag.","Gode data. Økonomiske besparelser. Høj grad af cirkulær økonomi. Mulighed for at projektere og planlægge ud fra Asset Management."]